Workbook

Sheet Contents
F2: =Workbook.Title -> Indicative dig distance cost model - For publication
A4: Information
A6: Title | B6: Indicative dig distance cost model - For publication
A7: Objective | B7: Estimating the 'break-even' indicative dig distance for the BCMR 2019 Statement - Annex 16
A8: Status | B8: Approved for release
A11: Contents
A13: Sheet | B13: Description
A14: Contents | B14: This contents sheet
A15: Style Guidelines | B15: A guide to the styles used in this workbook
A16: Terms and Conditions | B16: The terms and conditions on which OFCOM is making available the model
A17: Analysis-> | B17: Indicates that the orange-coloured sheets on the right handside include the different parts of our analysis
A18: 1.Scenarios | B18: A description of the scenarios considered in this workbook
A19: 2.Cost per scenario | B19: A list of the costs considered in each scenario
A20: 3.Assumptions | B20: The numeric assumptions that feed into the profit calculation and the break-even distance estimation
A21: 4.Profit calcs | B21: The calculation of the costs, revenues, and profits that inform the break-even distance estimation
A22: 5.Break-even distance est | B22: The estimation of the break-even distance for each product and payback period across the different scenarios
A23: Inputs-> | B23: Indicates that the blue-coloured sheets on the right handside include the different cost and price inputs we used for our analysis
A24: ECC | B24: BT's Excess Construction Charges
A25: PIA - Duct products | B25: Openreach's Physical Infrastructure Access prices for Duct Products
A26: PIA - Ancillary activities | B26: Openreach's Physical Infrastructure Access prices for Ancilliary Activities
A27: PIA - Ancillary rentals | B27: Openreach's Physical Infrastructure Access prices for Ancilliary Rentals
A28: EAD costs | B28: OFCOM's adjustment of Openreach's unit Fully Allocated Cost for cost component CO485 (Ethernet electronics) for Ethernet services (100Mbit/s, 1Gbit/s, and 10Gbit/s)
A29: EAD prices | B29: Openreach's prices for Ethernet services

Sheet Style Guidelines
H2: Style Guidelines
A5: Styles
B8: Input | C8: 100 | E8: An input to the model that it is expected the user will change (change at will)
B10: Output | C10: 100 | E10: A key result from this part of the model (in particular one that will be used elsewhere in the model)
B12: Confidential | E12: Confidential information that has been redacted
B14: Advanced user styles
B16: Source | C16: Source | E16: A source
B18: Named range | C18: Name | E18: An Excel Name applying to one or more adjacent cells (use Insert Name Create to actually create the Excel Names)
B20: H1 | C20: Title | E20: Heading level 1
B22: H2 | C22: Title | E22: Heading level 2

Sheet Terms and Conditions
A1: The disclosure of this sheet is only permitted to those nominated individuals and individuals occupying the roles and functional areas (and their relevant external advisers, sub-contractors and agents) listed in Annex 2 of the Undertakings given by BT to Ofcom pursuant to the Enterprise Act 2002.
A2: Terms and conditions
A4: The terms and conditions on which OFCOM is making available the model are set out below.
A6: All right, title and interest in the provided model (the ‘Model’) constructed in Excel to estimate the 'break-even distance' for the BCMR 2019 statement (dated May 2019) are owned by OFCOM. Such title and interest is protected by United Kingdom intellectual property laws and international treaty provisions. While you may freely use the Model to understand the calculations used to estimate our 'break-even distance', it is not to be modified in any way or used for commercial gain or otherwise without the prior written permission of OFCOM.
A8: No representation or warranty is given as to the accuracy, completeness or correctness of the provided Model and it is provided 'as is'. It is provided without any representation or endorsement made and without warranty of any kind, whether express or implied, including but not limited to the implied warranties of satisfactory quality, fitness for a particular purpose, non-infringement, compatibility, security and accuracy.
A10: OFCOM does not accept any responsibility for any loss, disruption or damage to your data or your computer system which may occur whilst using the Model or material derived from the Model. OFCOM does not warrant that the functions contained in the Model will be uninterrupted or error free. Also, OFCOM does not warrant that defects will be corrected, or that the Model provided is free of viruses.
A12: In no event will OFCOM be liable for any loss or damage including, without limitation, indirect or consequential loss or damage, or any loss or damages whatsoever arising from use or loss of use of, data or profits arising out of or in connection with the use or otherwise of the provided Model. By using this Model, you agree to the above.
A14: These terms and conditions shall be covered by and construed in accordance with the laws of England and Wales. Any dispute arising under these terms and conditions shall be subject to the exclusive jurisdiction of the Courts of England and Wales.

Sheet Analysis->
B3: This sheet left blank intentionally

Sheet 1.Scenarios
A1: 1) Definition of scenarios
B2: Criteria | D2: Scenario 1 | E2: Scenario 2a | F2: Scenario 2b | G2: Scenario 3
D3: Fibre connected | E3: Duct connected with tubing | F3: Duct connected without tubing | G3: Network extension (new duct required)
C4: (i) Existing infrastructure | D4: The incremental cost to connect a new customer site when the provider has a fibre connection in place. | E4: The incremental cost to connect a new customer site when the provider has fibre tubing in place, but not fibre. | F4: The incremental cost to connect a new customer site when the provider has duct in place, but not fibre tubing nor fibre. | G4: The incremental cost to connect a new customer site when the provider has no duct in place.
C5: (ii) Incremental costs | D5: There are virtually zero incremental costs. | E5: The main incremental cost is to blow fibre down the fibre tubing. | F5: The main incremental cost is blown fibre tubing and blown fibre. | G5: The main incremental cost includes the cost of digging to install a new duct, blown fibre tubing, and blown fibre.

Sheet 2.Cost per scenario
A1: 2) Costs per scenario
B2: a) Passive costs
D3: Scenario 1 | E3: Scenario 2a | F3: Scenario 2b | G3: Scenario 3 | H3: Frequency | I3: Operative date | J3: Charge £ Exc VAT
C4: Survey | D4: No | E4: Yes | F4: Yes | G4: Yes | H4: One-off per survey | I4: =ECC!B27 -> 01/04/2018 | J4: =ECC!D27 -> 244.52 | K4: ownnet_oneoff_survey
C5: Blown fibre tubing | D5: No | E5: No | F5: Yes | G5: Yes | H5: One-off per metre | I5: =ECC!B132 -> 01/04/2018 | J5: =ECC!E132 -> 3.83 | K5: ownnet_permetre_blownfibretube
C6: Blown fibre | D6: No | E6: Yes | F6: Yes | G6: Yes | H6: One-off per metre | I6: =ECC!B124 -> 01/04/2018 | J6: =ECC!E124 -> 1.74 | K6: ownnet_permetre_blownfibre
C7: Duct under a footway | D7: No | E7: No | F7: No | G7: Yes | H7: One-off per metre | I7: =ECC!B158 -> 01/12/2018 | J7: =ECC!E158 -> 66.54 | K7: ownnet_permetre_ductfootway
C8: Duct under a carriage way | D8: No | E8: No | F8: No | G8: Yes | H8: One-off per metre | I8: =ECC!B166 -> 01/12/2018 | J8: =ECC!E166 -> 119.22 | K8: ownnet_permetre_ductcarriageway
C9: New footway box | D9: No | E9: No | F9: No | G9: Yes | H9: One-off per footway box | I9: =ECC!B63 -> 01/10/2018 | J9: =ECC!D63 -> 761.62 | K9: ownnet_oneoff_footwaybox
C10: Break through external wall(s) at the customer premise | D10: No | E10: No | F10: No | G10: Yes | H10: One-off per break | I10: =ECC!B34 -> 01/04/2018 | J10: =ECC!D34 -> 220.83 | K10: ownnet_oneoff_breakwall
C11: Ancilliary activity - Blockage clearance (initial) - per blockage | D11: No | E11: No | F11: Yes | G11: No | H11: One-off per blockage | I11: ='PIA - Ancillary activities'!C92 -> 01/04/2019 | J11: ='PIA - Ancillary activities'!E92 -> 577.6 | K11: pia_perblockage_clearblock
B13: b) Active costs
D14: Scenario 1 | E14: Scenario 2a | F14: Scenario 2b | G14: Scenario 3 | H14: Frequency | J14: Charge £ Exc VAT
C15: EAD electronics equipment and installation for 100M EAD LA | D15: Yes | E15: Yes | F15: Yes | G15: Yes | H15: Annual rental per circuit | J15: ='EAD costs'!B7 -> 305.982 | K15: act_hundredmb_int_nonwecla
C16: EAD electronics equipment and installation for 1G EAD LA | D16: Yes | E16: Yes | F16: Yes | G16: Yes | H16: Annual rental per circuit | J16: ='EAD costs'!C7 -> 284.622 | K16: act_onegb_int_nonwecla
C17: EAD electronics equipment and installation for 10G EAD | D17: Yes | E17: Yes | F17: Yes | G17: Yes | H17: Annual rental per circuit | J17: =IF(assumption_act_tengb_low_or_high="low",assumption_act_tengb_low,assumption_act_tengb_high) -> 795.4464 | K17: act_tengb_int_rouk

Sheet 3.Assumptions
A1: 3. Assumptions
B2: a) Passive costs assumptions
C3: Survey | D3: 1 | F3: assumption_survey
C4: New footway box | D4: 100 | F4: assumption_footwaybox
C5: Break through external wall(s) at the customer premise | D5: 1 | F5: assumption_breakwall
C6: Ancilliary activity - Blockage clearance (initial) - per blockage | D6: low | E6: 1.5 | F6: assumption_blockage_low, conservative, in line with range published in 2018 WLA Market Review
E7: 2 | F7: assumption_blockage_high, conservative, in line with range published in 2018 WLA Market Review
C8: The proportion of the duct that runs under a footway (only when a new duct is needed) | D8: 0.9 | F8: assumption_proportion_duct_footway
C9: The proportion of the duct that runs under a carriage way (only when a new duct is needed) | D9: 0.1 | F9: assumption_proportion_duct_carriage_way
C10: Route distance in metres | D10: 230.6834373 | F10: assumption_route_distance
C11: Length of Lead-in duct in metres | D11: 25 | F11: assumption_leadinduct
C12: Number of entries per joint box | D12: 2 | F12: assumption_jointboxentry
B14: b) Active costs assumptions
C15: EAD electronics equipment and installation for 100M EAD LA | D15: 1 | F15: assumption_equipment
C16: EAD electronics equipment and installation for 1G EAD LA
C17: EAD electronics equipment and installation for 10G EAD
C18: EAD electronics equipment and installation for 10G EAD low or high | D18: low | E18: ='EAD costs'!D7 -> 795.4464 | F18: assumption_act_tengb_low
E19: ='EAD costs'!E7 -> 1193.1696 | F19: assumption_act_tengb_high
C20: Payback period (in years) | D20: 7 | F20: assumption_payback_period
C21: Asset life (in years) | D21: 5 | F21: assumption_asset_life
B23: c) Other assumptions
C24: Route distance to radial distance conversion factor | D24: 1.4 | F24: assumption_route_to_radial_distance
C25: Annual discount rate | D25: 0.08 | F25: assumption_discount_rate

Sheet 4.Profit calcs
A1: 4) Profit calculations
B2: a) Passive costs
C3: Passive costs (one-offs) | D3: Type of cost | E3: Scenario 1 | F3: Scenario 2a | G3: Scenario 2b | H3: Scenario 3
C4: Blown fibre tubing | D4: CAPEX | E4: 0 | F4: =IF(INDEX('2.Cost per scenario'!$E$4:$G$11,MATCH($C4,'2.Cost per scenario'!$C$4:$C$11,0),MATCH(F$3,'2.Cost per scenario'!$E$3:$G$3,0))="Yes",(assumption_route_distance*ownnet_permetre_blownfibretube),0) -> 0 | G4: =IF(INDEX('2.Cost per scenario'!$E$4:$G$11,MATCH($C4,'2.Cost per scenario'!$C$4:$C$11,0),MATCH(G$3,'2.Cost per scenario'!$E$3:$G$3,0))="Yes",(assumption_route_distance*ownnet_permetre_blownfibretube),0) -> 883.517565 | H4: =IF(INDEX('2.Cost per scenario'!$E$4:$G$11,MATCH($C4,'2.Cost per scenario'!$C$4:$C$11,0),MATCH(H$3,'2.Cost per scenario'!$E$3:$G$3,0))="Yes",(assumption_route_distance*ownnet_permetre_blownfibretube),0) -> 883.517565
C5: Blown fibre | D5: CAPEX | E5: 0 | F5: =IF(INDEX('2.Cost per scenario'!$E$4:$G$11,MATCH($C5,'2.Cost per scenario'!$C$4:$C$11,0),MATCH(F$3,'2.Cost per scenario'!$E$3:$G$3,0))="Yes",(assumption_route_distance*ownnet_permetre_blownfibre),0) -> 401.389181 | G5: =IF(INDEX('2.Cost per scenario'!$E$4:$G$11,MATCH($C5,'2.Cost per scenario'!$C$4:$C$11,0),MATCH(G$3,'2.Cost per scenario'!$E$3:$G$3,0))="Yes",(assumption_route_distance*ownnet_permetre_blownfibre),0) -> 401.389181 | H5: =IF(INDEX('2.Cost per scenario'!$E$4:$G$11,MATCH($C5,'2.Cost per scenario'!$C$4:$C$11,0),MATCH(H$3,'2.Cost per scenario'!$E$3:$G$3,0))="Yes",(assumption_route_distance*ownnet_permetre_blownfibre),0) -> 401.389181
C6: Duct under a footway | D6: CAPEX | E6: 0 | F6: =IF(INDEX('2.Cost per scenario'!$E$4:$G$11,MATCH($C6,'2.Cost per scenario'!$C$4:$C$11,0),MATCH(F$3,'2.Cost per scenario'!$E$3:$G$3,0))="Yes",(assumption_route_distance*ownnet_permetre_ductfootway*assumption_proportion_duct_footway),0) -> 0 | G6: =IF(INDEX('2.Cost per scenario'!$E$4:$G$11,MATCH($C6,'2.Cost per scenario'!$C$4:$C$11,0),MATCH(G$3,'2.Cost per scenario'!$E$3:$G$3,0))="Yes",(assumption_route_distance*ownnet_permetre_ductfootway*assumption_proportion_duct_footway),0) -> 0 | H6: =IF(INDEX('2.Cost per scenario'!$E$4:$G$11,MATCH($C6,'2.Cost per scenario'!$C$4:$C$11,0),MATCH(H$3,'2.Cost per scenario'!$E$3:$G$3,0))="Yes",(assumption_route_distance*ownnet_permetre_ductfootway*assumption_proportion_duct_footway),0) -> 13814.70833
C7: Duct under a carriage way | D7: CAPEX | E7: 0 | F7: =IF(INDEX('2.Cost per scenario'!$E$4:$G$11,MATCH($C7,'2.Cost per scenario'!$C$4:$C$11,0),MATCH(F$3,'2.Cost per scenario'!$E$3:$G$3,0))="Yes",(assumption_route_distance*ownnet_permetre_ductcarriageway*assumption_proportion_duct_carriage_way),0) -> 0 | G7: =IF(INDEX('2.Cost per scenario'!$E$4:$G$11,MATCH($C7,'2.Cost per scenario'!$C$4:$C$11,0),MATCH(G$3,'2.Cost per scenario'!$E$3:$G$3,0))="Yes",(assumption_route_distance*ownnet_permetre_ductcarriageway*assumption_proportion_duct_carriage_way),0) -> 0 | H7: =IF(INDEX('2.Cost per scenario'!$E$4:$G$11,MATCH($C7,'2.Cost per scenario'!$C$4:$C$11,0),MATCH(H$3,'2.Cost per scenario'!$E$3:$G$3,0))="Yes",(assumption_route_distance*ownnet_permetre_ductcarriageway*assumption_proportion_duct_carriage_way),0) -> 2750.20794
C8: New footway box | D8: CAPEX | E8: 0 | F8: =IF(INDEX('2.Cost per scenario'!$E$4:$G$11,MATCH($C8,'2.Cost per scenario'!$C$4:$C$11,0),MATCH(F$3,'2.Cost per scenario'!$E$3:$G$3,0))="Yes",(ROUNDDOWN(assumption_route_distance/assumption_footwaybox,0)*ownnet_oneoff_footwaybox+ownnet_oneoff_footwaybox),0) -> 0 | G8: =IF(INDEX('2.Cost per scenario'!$E$4:$G$11,MATCH($C8,'2.Cost per scenario'!$C$4:$C$11,0),MATCH(G$3,'2.Cost per scenario'!$E$3:$G$3,0))="Yes",(ROUNDDOWN(assumption_route_distance/assumption_footwaybox,0)*ownnet_oneoff_footwaybox+ownnet_oneoff_footwaybox),0) -> 0 | H8: =IF(INDEX('2.Cost per scenario'!$E$4:$G$11,MATCH($C8,'2.Cost per scenario'!$C$4:$C$11,0),MATCH(H$3,'2.Cost per scenario'!$E$3:$G$3,0))="Yes",(ROUNDDOWN(assumption_route_distance/assumption_footwaybox,0)*ownnet_oneoff_footwaybox+ownnet_oneoff_footwaybox),0) -> 2284.86
C9: Survey | D9: OPEX | E9: 0 | F9: =IF(INDEX('2.Cost per scenario'!$E$4:$G$11,MATCH($C9,'2.Cost per scenario'!$C$4:$C$11,0),MATCH(F$3,'2.Cost per scenario'!$E$3:$G$3,0))="Yes",assumption_survey*ownnet_oneoff_survey,0) -> 244.52 | G9: =IF(INDEX('2.Cost per scenario'!$E$4:$G$11,MATCH($C9,'2.Cost per scenario'!$C$4:$C$11,0),MATCH(G$3,'2.Cost per scenario'!$E$3:$G$3,0))="Yes",assumption_survey*ownnet_oneoff_survey,0) -> 244.52 | H9: =IF(INDEX('2.Cost per scenario'!$E$4:$G$11,MATCH($C9,'2.Cost per scenario'!$C$4:$C$11,0),MATCH(H$3,'2.Cost per scenario'!$E$3:$G$3,0))="Yes",assumption_survey*ownnet_oneoff_survey,0) -> 244.52
C10: Break through external wall(s) at the customer premise | D10: OPEX | E10: 0 | F10: =IF(INDEX('2.Cost per scenario'!$E$4:$G$11,MATCH($C10,'2.Cost per scenario'!$C$4:$C$11,0),MATCH(F$3,'2.Cost per scenario'!$E$3:$G$3,0))="Yes",assumption_breakwall*ownnet_oneoff_breakwall,0) -> 0 | G10: =IF(INDEX('2.Cost per scenario'!$E$4:$G$11,MATCH($C10,'2.Cost per scenario'!$C$4:$C$11,0),MATCH(G$3,'2.Cost per scenario'!$E$3:$G$3,0))="Yes",assumption_breakwall*ownnet_oneoff_breakwall,0) -> 0 | H10: =IF(INDEX('2.Cost per scenario'!$E$4:$G$11,MATCH($C10,'2.Cost per scenario'!$C$4:$C$11,0),MATCH(H$3,'2.Cost per scenario'!$E$3:$G$3,0))="Yes",assumption_breakwall*ownnet_oneoff_breakwall,0) -> 220.83
C11: Ancilliary activity - Blockage clearance (initial) - per blockage | D11: OPEX | E11: 0 | F11: =IF(INDEX('2.Cost per scenario'!$E$4:$G$11,MATCH($C11,'2.Cost per scenario'!$C$4:$C$11,0),MATCH(F$3,'2.Cost per scenario'!$E$3:$G$3,0))="Yes",(IF(assumption_blockage_low_or_high="low",assumption_blockage_low,assumption_blockage_high)*assumption_route_distance/1000*pia_perblockage_clearblock),0) -> 0 | G11: =IF(INDEX('2.Cost per scenario'!$E$4:$G$11,MATCH($C11,'2.Cost per scenario'!$C$4:$C$11,0),MATCH(G$3,'2.Cost per scenario'!$E$3:$G$3,0))="Yes",(IF(assumption_blockage_low_or_high="low",assumption_blockage_low,assumption_blockage_high)*assumption_route_distance/1000*pia_perblockage_clearblock),0) -> 199.8641301 | H11: =IF(INDEX('2.Cost per scenario'!$E$4:$G$11,MATCH($C11,'2.Cost per scenario'!$C$4:$C$11,0),MATCH(H$3,'2.Cost per scenario'!$E$3:$G$3,0))="Yes",(IF(assumption_blockage_low_or_high="low",assumption_blockage_low,assumption_blockage_high)*assumption_route_distance/1000*pia_perblockage_clearblock),0) -> 0
C12: Total CAPEX | D12: CAPEX | E12: 0 | F12: =SUMIFS(F$4:F$11,$D$4:$D$11,$D12) -> 401.389181 | G12: =SUMIFS(G$4:G$11,$D$4:$D$11,$D12) -> 1284.906746 | H12: 20134.68301 | I12: scenX_passive_capex_cost
C13: Total OPEX | D13: OPEX | E13: 0 | F13: =SUMIFS(F$4:F$11,$D$4:$D$11,$D13) -> 244.52 | G13: 444.3841301 | H13: 465.35 | I13: scenX_passive_opex_cost
C14: Total | D14: CAPEX + OPEX | E14: 0 | F14: =F12+F13 -> 645.909181 | G14: =G12+G13 -> 1729.290876 | H14: =H12+H13 -> 20600.03301 | I14: scenX_passive_total_cost
B17: b) Active costs
C18: Active costs (one-offs) | D18: Type of cost | E18: Scenario 1 | F18: Scenario 2a | G18: Scenario 2b | H18: Scenario 3
C19: EAD electronics equipment and installation for 100M EAD LA | D19: CAPEX | E19: 0 | F19: =IF(INDEX('2.Cost per scenario'!$E$15:$G$17,MATCH($C19,'2.Cost per scenario'!$C$15:$C$17,0),MATCH(F$18,'2.Cost per scenario'!$E$14:$G$14,0))="Yes",assumption_equipment*act_hundredmb_int_nonwecla*assumption_asset_life) -> 1529.91 | G19: =IF(INDEX('2.Cost per scenario'!$E$15:$G$17,MATCH($C19,'2.Cost per scenario'!$C$15:$C$17,0),MATCH(G$18,'2.Cost per scenario'!$E$14:$G$14,0))="Yes",assumption_equipment*act_hundredmb_int_nonwecla*assumption_asset_life) -> 1529.91 | H19: =IF(INDEX('2.Cost per scenario'!$E$15:$G$17,MATCH($C19,'2.Cost per scenario'!$C$15:$C$17,0),MATCH(H$18,'2.Cost per scenario'!$E$14:$G$14,0))="Yes",assumption_equipment*act_hundredmb_int_nonwecla*assumption_asset_life) -> 1529.91 | I19: eadla_100mb_equipment
C20: EAD electronics equipment and installation for 1G EAD LA | D20: CAPEX | E20: 0 | F20: =IF(INDEX('2.Cost per scenario'!$E$15:$G$17,MATCH($C20,'2.Cost per scenario'!$C$15:$C$17,0),MATCH(F$18,'2.Cost per scenario'!$E$14:$G$14,0))="Yes",assumption_equipment*act_onegb_int_nonwecla*assumption_asset_life) -> 1423.11 | G20: =IF(INDEX('2.Cost per scenario'!$E$15:$G$17,MATCH($C20,'2.Cost per scenario'!$C$15:$C$17,0),MATCH(G$18,'2.Cost per scenario'!$E$14:$G$14,0))="Yes",assumption_equipment*act_onegb_int_nonwecla*assumption_asset_life) -> 1423.11 | H20: =IF(INDEX('2.Cost per scenario'!$E$15:$G$17,MATCH($C20,'2.Cost per scenario'!$C$15:$C$17,0),MATCH(H$18,'2.Cost per scenario'!$E$14:$G$14,0))="Yes",assumption_equipment*act_onegb_int_nonwecla*assumption_asset_life) -> 1423.11 | I20: eadla_1000mb_equipment
C21: EAD electronics equipment and installation for 10G EAD | D21: CAPEX | E21: 0 | F21: =IF(INDEX('2.Cost per scenario'!$E$15:$G$17,MATCH($C21,'2.Cost per scenario'!$C$15:$C$17,0),MATCH(F$18,'2.Cost per scenario'!$E$14:$G$14,0))="Yes",assumption_equipment*act_tengb_int_rouk*assumption_asset_life) -> 3977.232 | G21: =IF(INDEX('2.Cost per scenario'!$E$15:$G$17,MATCH($C21,'2.Cost per scenario'!$C$15:$C$17,0),MATCH(G$18,'2.Cost per scenario'!$E$14:$G$14,0))="Yes",assumption_equipment*act_tengb_int_rouk*assumption_asset_life) -> 3977.232 | H21: =IF(INDEX('2.Cost per scenario'!$E$15:$G$17,MATCH($C21,'2.Cost per scenario'!$C$15:$C$17,0),MATCH(H$18,'2.Cost per scenario'!$E$14:$G$14,0))="Yes",assumption_equipment*act_tengb_int_rouk*assumption_asset_life) -> 3977.232 | I21: eadla_10000mb_equipment
B23: Note that the passive and active costs we have considered in our analysis do not include a return on capital employed explicitly. This is because our discounted cash flow (DCF) analysis captures this return implicitly through the application of a discount rate (i.e. WACC).
B26: c) Total costs = a + b
C27: Circuit | D27: Type of cost | E27: Scenario 1 | F27: Scenario 2a | G27: Scenario 2b | H27: Scenario 3
C28: EAD LA 100Mbit/s | D28: CAPEX + OPEX | E28: =scen1_passive_total_cost+eadla_100mb_equipment -> 1529.91 | F28: =scen2a_passive_total_cost+eadla_100mb_equipment -> 2175.819181 | G28: =scen2b_passive_total_cost+eadla_100mb_equipment -> 3259.200876 | H28: =scen3_passive_total_cost+eadla_100mb_equipment -> 22129.94301
C29: EAD LA 1Gbit/s | D29: CAPEX + OPEX | E29: =scen1_passive_total_cost+eadla_1000mb_equipment -> 1423.11 | F29: =scen2a_passive_total_cost+eadla_1000mb_equipment -> 2069.019181 | G29: =scen2b_passive_total_cost+eadla_1000mb_equipment -> 3152.400876 | H29: =scen3_passive_total_cost+eadla_1000mb_equipment -> 22023.14301
C30: EAD LA 10Gbit/s | D30: CAPEX + OPEX | E30: =scen1_passive_total_cost+eadla_10000mb_equipment -> 3977.232 | F30: =scen2a_passive_total_cost+eadla_10000mb_equipment -> 4623.141181 | G30: =scen2b_passive_total_cost+eadla_10000mb_equipment -> 5706.522876 | H30: =scen3_passive_total_cost+eadla_10000mb_equipment -> 24577.26501
B33: d) Revenues
C34: Circuit | D34: Connection (one-off)
C35: ='EAD prices'!A359 -> EAD Local Access 100 | D35: ='EAD prices'!E359 -> 1850
C36: ='EAD prices'!A370 -> EAD Local Access 1000 | D36: ='EAD prices'!E370 -> 1850
C37: ='EAD prices'!A380 -> EAD Local Access 1000 (60 month minimum period) | D37: ='EAD prices'!E380 -> 1850
C38: ='EAD prices'!A387 -> EAD Local Access 1000 (84 month minimum period) | D38: ='EAD prices'!E387 -> 2915
C39: ='EAD prices'!A391 -> EAD Local Access 10000 | D39: ='EAD prices'!E391 -> 5565
C40: ='EAD prices'!A395 -> EAD Local Access 10000 (60 month minimum period) | D40: ='EAD prices'!E395 -> 4065
E42: Year
C43: Circuit | D43: Rental NPV | E43: 1 | F43: 2 | G43: 3 | H43: 4 | I43: 5 | J43: 6 | K43: 7 | L43: 8 | M43: 9 | N43: 10
C44: =C35 -> EAD Local Access 100 | D44: =SUM(E44:N44) -> 7725.836658 | E44: =IF(assumption_payback_period>=E$43,'EAD prices'!$F$359/POWER(1+assumption_discount_rate,E$43-$E$43),0) -> 1374 | F44: =IF(assumption_payback_period>=F$43,'EAD prices'!$F$359/POWER(1+assumption_discount_rate,F$43-$E$43),0) -> 1272.222222 | G44: =IF(assumption_payback_period>=G$43,'EAD prices'!$F$359/POWER(1+assumption_discount_rate,G$43-$E$43),0) -> 1177.983539 | H44: =IF(assumption_payback_period>=H$43,'EAD prices'!$F$359/POWER(1+assumption_discount_rate,H$43-$E$43),0) -> 1090.725499 | I44: =IF(assumption_payback_period>=I$43,'EAD prices'!$F$359/POWER(1+assumption_discount_rate,I$43-$E$43),0) -> 1009.931018 | J44: =IF(assumption_payback_period>=J$43,'EAD prices'!$F$359/POWER(1+assumption_discount_rate,J$43-$E$43),0) -> 935.1213127 | K44: =IF(assumption_payback_period>=K$43,'EAD prices'!$F$359/POWER(1+assumption_discount_rate,K$43-$E$43),0) -> 865.8530673 | L44: =IF(assumption_payback_period>=L$43,'EAD prices'!$F$359/POWER(1+assumption_discount_rate,L$43-$E$43),0) -> 0 | M44: =IF(assumption_payback_period>=M$43,'EAD prices'!$F$359/POWER(1+assumption_discount_rate,M$43-$E$43),0) -> 0 | N44: =IF(assumption_payback_period>=N$43,'EAD prices'!$F$359/POWER(1+assumption_discount_rate,N$43-$E$43),0) -> 0
C45: =C36 -> EAD Local Access 1000 | D45: =SUM(E45:N45) -> 9109.065056 | E45: =IF(assumption_payback_period>=E$43,'EAD prices'!$F$370/POWER(1+assumption_discount_rate,E$43-$E$43),0) -> 1620 | F45: =IF(assumption_payback_period>=F$43,'EAD prices'!$F$370/POWER(1+assumption_discount_rate,F$43-$E$43),0) -> 1500 | G45: =IF(assumption_payback_period>=G$43,'EAD prices'!$F$370/POWER(1+assumption_discount_rate,G$43-$E$43),0) -> 1388.888889 | H45: =IF(assumption_payback_period>=H$43,'EAD prices'!$F$370/POWER(1+assumption_discount_rate,H$43-$E$43),0) -> 1286.00823 | I45: =IF(assumption_payback_period>=I$43,'EAD prices'!$F$370/POWER(1+assumption_discount_rate,I$43-$E$43),0) -> 1190.748362 | J45: =IF(assumption_payback_period>=J$43,'EAD prices'!$F$370/POWER(1+assumption_discount_rate,J$43-$E$43),0) -> 1102.544779 | K45: =IF(assumption_payback_period>=K$43,'EAD prices'!$F$370/POWER(1+assumption_discount_rate,K$43-$E$43),0) -> 1020.874796 | L45: =IF(assumption_payback_period>=L$43,'EAD prices'!$F$370/POWER(1+assumption_discount_rate,L$43-$E$43),0) -> 0 | M45: =IF(assumption_payback_period>=M$43,'EAD prices'!$F$370/POWER(1+assumption_discount_rate,M$43-$E$43),0) -> 0 | N45: =IF(assumption_payback_period>=N$43,'EAD prices'!$F$370/POWER(1+assumption_discount_rate,N$43-$E$43),0) -> 0
C46: EAD Local Access 1000 (60 month minimum period) | D46: 8805.429554 | E46: =IF(assumption_payback_period>=E$43,'EAD prices'!$F$380/POWER(1+assumption_discount_rate,E$43-$E$43),0) -> 1566 | F46: =IF(assumption_payback_period>=F$43,'EAD prices'!$F$380/POWER(1+assumption_discount_rate,F$43-$E$43),0) -> 1450 | G46: =IF(assumption_payback_period>=G$43,'EAD prices'!$F$380/POWER(1+assumption_discount_rate,G$43-$E$43),0) -> 1342.592593 | H46: =IF(assumption_payback_period>=H$43,'EAD prices'!$F$380/POWER(1+assumption_discount_rate,H$43-$E$43),0) -> 1243.141289 | I46: =IF(assumption_payback_period>=I$43,'EAD prices'!$F$380/POWER(1+assumption_discount_rate,I$43-$E$43),0) -> 1151.056749 | J46: =IF(assumption_payback_period>=J$43,'EAD prices'!$F$380/POWER(1+assumption_discount_rate,J$43-$E$43),0) -> 1065.793287 | K46: =IF(assumption_payback_period>=K$43,'EAD prices'!$F$380/POWER(1+assumption_discount_rate,K$43-$E$43),0) -> 986.8456357 | L46: =IF(assumption_payback_period>=L$43,'EAD prices'!$F$380/POWER(1+assumption_discount_rate,L$43-$E$43),0) -> 0 | M46: =IF(assumption_payback_period>=M$43,'EAD prices'!$F$380/POWER(1+assumption_discount_rate,M$43-$E$43),0) -> 0 | N46: =IF(assumption_payback_period>=N$43,'EAD prices'!$F$380/POWER(1+assumption_discount_rate,N$43-$E$43),0) -> 0
C47: EAD Local Access 1000 (84 month minimum period) | D47: 9109.065056 | E47: =IF(assumption_payback_period>=E$43,'EAD prices'!$F$387/POWER(1+assumption_discount_rate,E$43-$E$43),0) -> 1620 | F47: =IF(assumption_payback_period>=F$43,'EAD prices'!$F$387/POWER(1+assumption_discount_rate,F$43-$E$43),0) -> 1500 | G47: =IF(assumption_payback_period>=G$43,'EAD prices'!$F$387/POWER(1+assumption_discount_rate,G$43-$E$43),0) -> 1388.888889 | H47: =IF(assumption_payback_period>=H$43,'EAD prices'!$F$387/POWER(1+assumption_discount_rate,H$43-$E$43),0) -> 1286.00823 | I47: =IF(assumption_payback_period>=I$43,'EAD prices'!$F$387/POWER(1+assumption_discount_rate,I$43-$E$43),0) -> 1190.748362 | J47: =IF(assumption_payback_period>=J$43,'EAD prices'!$F$387/POWER(1+assumption_discount_rate,J$43-$E$43),0) -> 1102.544779 | K47: =IF(assumption_payback_period>=K$43,'EAD prices'!$F$387/POWER(1+assumption_discount_rate,K$43-$E$43),0) -> 1020.874796 | L47: =IF(assumption_payback_period>=L$43,'EAD prices'!$F$387/POWER(1+assumption_discount_rate,L$43-$E$43),0) -> 0 | M47: =IF(assumption_payback_period>=M$43,'EAD prices'!$F$387/POWER(1+assumption_discount_rate,M$43-$E$43),0) -> 0 | N47: =IF(assumption_payback_period>=N$43,'EAD prices'!$F$387/POWER(1+assumption_discount_rate,N$43-$E$43),0) -> 0
C48: EAD Local Access 10000 | D48: 23312.45909 | E48: =IF(assumption_payback_period>=E$43,'EAD prices'!$F$391/POWER(1+assumption_discount_rate,E$43-$E$43),0) -> 4146 | F48: =IF(assumption_payback_period>=F$43,'EAD prices'!$F$391/POWER(1+assumption_discount_rate,F$43-$E$43),0) -> 3838.888889 | G48: =IF(assumption_payback_period>=G$43,'EAD prices'!$F$391/POWER(1+assumption_discount_rate,G$43-$E$43),0) -> 3554.526749 | H48: =IF(assumption_payback_period>=H$43,'EAD prices'!$F$391/POWER(1+assumption_discount_rate,H$43-$E$43),0) -> 3291.228471 | I48: =IF(assumption_payback_period>=I$43,'EAD prices'!$F$391/POWER(1+assumption_discount_rate,I$43-$E$43),0) -> 3047.43377 | J48: =IF(assumption_payback_period>=J$43,'EAD prices'!$F$391/POWER(1+assumption_discount_rate,J$43-$E$43),0) -> 2821.697935 | K48: =IF(assumption_payback_period>=K$43,'EAD prices'!$F$391/POWER(1+assumption_discount_rate,K$43-$E$43),0) -> 2612.683273 | L48: =IF(assumption_payback_period>=L$43,'EAD prices'!$F$391/POWER(1+assumption_discount_rate,L$43-$E$43),0) -> 0 | M48: =IF(assumption_payback_period>=M$43,'EAD prices'!$F$391/POWER(1+assumption_discount_rate,M$43-$E$43),0) -> 0 | N48: =IF(assumption_payback_period>=N$43,'EAD prices'!$F$391/POWER(1+assumption_discount_rate,N$43-$E$43),0) -> 0
C49: EAD Local Access 10000 (60 month minimum period) | D49: 20512.26501 | E49: =IF(assumption_payback_period>=E$43,'EAD prices'!$F$395/POWER(1+assumption_discount_rate,E$43-$E$43),0) -> 3648 | F49: =IF(assumption_payback_period>=F$43,'EAD prices'!$F$395/POWER(1+assumption_discount_rate,F$43-$E$43),0) -> 3377.777778 | G49: =IF(assumption_payback_period>=G$43,'EAD prices'!$F$395/POWER(1+assumption_discount_rate,G$43-$E$43),0) -> 3127.572016 | H49: =IF(assumption_payback_period>=H$43,'EAD prices'!$F$395/POWER(1+assumption_discount_rate,H$43-$E$43),0) -> 2895.900015 | I49: =IF(assumption_payback_period>=I$43,'EAD prices'!$F$395/POWER(1+assumption_discount_rate,I$43-$E$43),0) -> 2681.388903 | J49: =IF(assumption_payback_period>=J$43,'EAD prices'!$F$395/POWER(1+assumption_discount_rate,J$43-$E$43),0) -> 2482.767503 | K49: =IF(assumption_payback_period>=K$43,'EAD prices'!$F$395/POWER(1+assumption_discount_rate,K$43-$E$43),0) -> 2298.858799 | L49: =IF(assumption_payback_period>=L$43,'EAD prices'!$F$395/POWER(1+assumption_discount_rate,L$43-$E$43),0) -> 0 | M49: =IF(assumption_payback_period>=M$43,'EAD prices'!$F$395/POWER(1+assumption_discount_rate,M$43-$E$43),0) -> 0 | N49: =IF(assumption_payback_period>=N$43,'EAD prices'!$F$395/POWER(1+assumption_discount_rate,N$43-$E$43),0) -> 0
C52: Circuit | D52: Total cost of Ownership
C53: =C35 -> EAD Local Access 100 | D53: =D35+D44 -> 9575.836658 | E53: eadla_100mb_tco
C54: =C36 -> EAD Local Access 1000 | D54: 10959.06506 | E54: eadla_1000mb_tco
C55: EAD Local Access 1000 (60 month minimum period) | D55: 10655.42955 | E55: eadla_1000mb_tco_5year
C56: EAD Local Access 1000 (84 month minimum period) | D56: 12024.06506 | E56: eadla_1000mb_tco_7year
C57: EAD Local Access 10000 | D57: 28877.45909 | E57: eadla_10000mb_tco
C58: EAD Local Access 10000 (60 month minimum period) | D58: 24577.26501 | E58: eadla_10000mb_tco_5year
B61: e) Profit = d - c
C62: Circuit | D62: Scenario 1 | E62: Scenario 2a | F62: Scenario 2b | G62: Scenario 3
C63: EAD LA 100Mbit/s | D63: =eadla_100mb_tco-scen1_passive_total_cost-eadla_100mb_equipment -> 8045.926658 | E63: =eadla_100mb_tco-scen2a_passive_total_cost-eadla_100mb_equipment -> 7400.017477 | F63: =eadla_100mb_tco-scen2b_passive_total_cost-eadla_100mb_equipment -> 6316.635782 | G63: =eadla_100mb_tco-scen3_passive_total_cost-eadla_100mb_equipment -> -12554.10636
C64: EAD LA 1Gbit/s | D64: =IF(assumption_payback_period<5,eadla_1000mb_tco,IF(assumption_payback_period>5, eadla_1000mb_tco_7year,eadla_1000mb_tco_5year))-scen1_passive_total_cost-eadla_1000mb_equipment -> 10600.95506 | E64: =IF(assumption_payback_period<5,eadla_1000mb_tco,IF(assumption_payback_period>5, eadla_1000mb_tco_7year,eadla_1000mb_tco_5year))-scen2a_passive_total_cost-eadla_1000mb_equipment -> 9955.045875 | F64: =IF(assumption_payback_period<5,eadla_1000mb_tco,IF(assumption_payback_period>5, eadla_1000mb_tco_7year,eadla_1000mb_tco_5year))-scen2b_passive_total_cost-eadla_1000mb_equipment -> 8871.66418 | G64: =IF(assumption_payback_period<5,eadla_1000mb_tco,IF(assumption_payback_period>5, eadla_1000mb_tco_7year,eadla_1000mb_tco_5year))-scen3_passive_total_cost-eadla_1000mb_equipment -> -9999.077959
C65: EAD LA 10Gbit/s | D65: =IF(assumption_payback_period<5,eadla_10000mb_tco,eadla_10000mb_tco_5year)-scen1_passive_total_cost-eadla_10000mb_equipment -> 20600.03301 | E65: =IF(assumption_payback_period<5,eadla_10000mb_tco,eadla_10000mb_tco_5year)-scen2a_passive_total_cost-eadla_10000mb_equipment -> 19954.12383 | F65: =IF(assumption_payback_period<5,eadla_10000mb_tco,eadla_10000mb_tco_5year)-scen2b_passive_total_cost-eadla_10000mb_equipment -> 18870.74214 | G65: =IF(assumption_payback_period<5,eadla_10000mb_tco,eadla_10000mb_tco_5year)-scen3_passive_total_cost-eadla_10000mb_equipment -> 3.637978807e-12
E66: eadla_Xmb_profit_scen_two_a | F66: eadla_Xmb_profit_scen_two_b | G66: eadla_Xmb_profit_scen_three

Sheet 5.Break-even distance est
A1: 5. Break-even distance estimation
B2: a) Click the button below and the tables will populate automatically; or
E9: Approximate break-even route distance | K9: Approximate break-even radial distance
C10: Circuit | D10: Payback period (years) | E10: ='4.Profit calcs'!D62 -> Scenario 1 | F10: ='4.Profit calcs'!E62 -> Scenario 2a | G10: ='4.Profit calcs'!F62 -> Scenario 2b | H10: ='4.Profit calcs'!G62 -> Scenario 3 | K10: ='4.Profit calcs'!D62 -> Scenario 1 | L10: ='4.Profit calcs'!E62 -> Scenario 2a | M10: ='4.Profit calcs'!F62 -> Scenario 2b | N10: ='4.Profit calcs'!G62 -> Scenario 3
C11: EAD LA 100Mbit/s | D11: 3 | E11: Distance is not a factor | F11: 2241.250438 | G11: 605.8939409 | H11: 37.70226371 | K11: Distance is not a factor | L11: =F11/assumption_route_to_radial_distance -> 1600.89317 | M11: =G11/assumption_route_to_radial_distance -> 432.7813864 | N11: =H11/assumption_route_to_radial_distance -> 26.93018836
C12: EAD LA 100Mbit/s | D12: 5 | E12: Distance is not a factor | F12: 3448.524298 | G12: 932.2652847 | H12: 64.85024527 | K12: Distance is not a factor | L12: 2463.231641 | M12: 665.9037748 | N12: 46.32160376
C13: EAD LA 100Mbit/s | D13: 7 | E13: Distance is not a factor | F13: 4483.567045 | G13: 1212.076107 | H13: 88.12526375 | K13: Distance is not a factor | L13: 3202.547889 | M13: 865.7686482 | N13: 62.94661696
C14: EAD LA 1Gbit/s | D14: 3 | E14: Distance is not a factor | F14: 2696.125798 | G14: 728.8637886 | H14: 47.93105132 | K14: Distance is not a factor | L14: 1925.804142 | M14: 520.6169919 | N14: 34.23646523
C15: EAD LA 1Gbit/s | D15: 5 | E15: Distance is not a factor | F15: 3985.724501 | G15: 1077.490621 | H15: 76.93027258 | K15: Distance is not a factor | L15: 2846.946072 | M15: 769.6361577 | N15: 54.9501947
C16: EAD LA 1Gbit/s | D16: 7 | E16: Distance is not a factor | F16: 5951.97417 | G16: 1609.041554 | H16: 111.3025027 | K16: Distance is not a factor | L16: 4251.410121 | M16: 1149.315395 | N16: 79.50178766
C17: EAD LA 10Gbit/s | D17: 3 | E17: Distance is not a factor | F17: 7403.829677 | G17: 2001.532477 | H17: 143.9503947 | K17: Distance is not a factor | L17: 5288.449769 | M17: 1429.666055 | N17: 102.8217105
C18: EAD LA 10Gbit/s | D18: 5 | E18: Distance is not a factor | F18: 8950.509605 | G18: 2419.657994 | H18: 178.7306045 | K18: Distance is not a factor | L18: 6393.221146 | M18: 1728.327139 | N18: 127.6647175
C19: EAD LA 10Gbit/s | D19: 7 | E19: Distance is not a factor | F19: 11698.5707 | G19: 3162.561838 | H19: 230.6834373 | K19: Distance is not a factor | L19: 8356.121927 | M19: 2258.972741 | N19: 164.7738838
F20: eadla_Xmb_X_year_scen_two_a | G20: eadla_Xmb_X_year_scen_two_b | H20: eadla_Xmb_X_year_scen_three
B26: b) Follow these steps
C27: Step 1. Select the profit of the product and scenario of interest on tab "4.Profit calcs"
C28: Step 2. Select "Data" tab > "What-If Analysis" > "Goal seek"
C29: Step 3. Type in 0 (zero) in "To value"
C30: Step 4. Type in "assumption_route_distance" in "By changing cell"
C31: Step 5. The break-even distances will show up below:
C32: Break-even route distance | D32: =assumption_route_distance -> 230.6834373 | E32: breakeven_route_distance
C33: Break-even radial distance | D33: =assumption_route_distance/assumption_route_to_radial_distance -> 164.7738838 | E33: breakeven_radial_distance

Sheet Inputs->
B3: This sheet left blank intentionally

Sheet ECC
A1: Source:
A2: https://www.openreach.co.uk/orpg/home/products/pricing/loadProductPriceDetails.do?data=pAWshrQ7XRSLb9S%2BW8IAk0G8vUtdrlJTUevDC2QqJZ8lMnGHsqdC0vzO163bJmh34D91D7M0q8u%2FIlSgtIFAKw%3D%3D
A3: Price list
A6: Product line: | B6: Service Product Pricing
A7: First level product: | B7: Common products (Subject to applicable LLU/SLU/WLR/Ethernet/GEA Product Agreements)
A8: Second level product: | B8: Excess Construction Charges
A9: Version | B9: N/A
A12: Excess Construction Charges
A15: Excess Construction Charges
A17: Excess Construction Charges Excess Construction Charges will be due and payable (in addition to normal connection charges) where: (a) additional infrastructure is provided to give new or an extended service at an end user&rsquo;s site or; (b) an alternate location requested by the Communications Provider (where there is no regulatory obligation to provide) except in the circumstances where Openreach has decided in its reasonable discretion to extend its network for commercial reasons. When Excess Construction is required, a survey will be carried out and charges will be individually assessed based upon the following rates. These charges are in addition to the standard connection charges which apply for the applicable service.
A19: Feature | B19: Operative date | C19: Until | D19: Single Payment Charge £ Exc VAT | E19: Connection Charge £ Exc VAT
A20: Survey Fee/ Planning Charge (Previously included in other charges) This item will only be charged if Excess Construction Charges are accepted by a customer except for Non Standard Lines where the Survey Fee will be charged with every order. It will be included as an item within the excess charges calculation and each resurvey additional to the first survey will increment the cost by a further £350. | B20: 30/08/2007 | C20: 31/03/2013 | D20: 350.00
A21: Survey Fee/ Planning Charge (Previously included in other charges) This item will only be charged if Excess Construction Charges are accepted by a customer except for Non Standard Lines where the Survey Fee will be charged with every order. It will be included as an item within the excess charges calculation and each resurvey additional to the first survey will increment the cost by a further £252.40. | B21: 01/04/2013 | C21: 31/03/2014 | D21: 252.40
A22: Survey Fee/ Planning Charge (Previously included in other charges) This item will only be charged if Excess Construction Charges are accepted by a customer except for Non Standard Lines where the Survey Fee will be charged with every order. It will be included as an item within the excess charges calculation and each resurvey additional to the first survey will increment the cost by a further £255.58. | B22: 01/04/2014 | C22: 31/03/2015 | D22: 255.58
A23: Survey Fee/ Planning Charge (Previously included in other charges) This item will only be charged if Excess Construction Charges are accepted by a customer except for Non Standard Lines where the Survey Fee will be charged with every order. It will be included as an item within the excess charges calculation and each resurvey additional to the first survey will increment the cost by a further £260.30. | B23: 01/04/2015 | C23: 30/04/2016 | D23: 260.30
A24: Survey Fee/ Planning Charge (Previously included in other charges) This item will only be charged if Excess Construction Charges are accepted by a customer except for Non Standard Lines where the Survey Fee will be charged with every order. It will be included as an item within the excess charges calculation and each resurvey additional to the first survey will increment the cost by a further £250.79. | B24: 01/05/2016 | C24: 31/03/2017 | D24: 250.79
A25: Survey Fee/ Planning Charge (Previously included in other charges) This item will only be charged if Excess Construction Charges are accepted by a customer except for Non Standard Lines where the Survey Fee will be charged with every order. It will be included as an item within the excess charges calculation and each resurvey additional to the first survey will increment the cost by a further £245.14. | B25: 01/04/2017 | C25: 31/03/2018 | D25: 245.14
A26: Survey Fee/ Planning Charge (Previously included in other charges) This item will only be charged if Excess Construction Charges are accepted by a customer except for Non Standard Lines where the Survey Fee will be charged with every order. It will be included as an item within the excess charges calculation and each resurvey additional to the first survey will increment the cost by a further £244.53. | B26: 01/04/2018 | C26: 01/04/2018 | D26: 244.53
A27: Survey Fee/ Planning Charge (Previously included in other charges) This item will only be charged if Excess Construction Charges are accepted by a customer except for Non Standard Lines where the Survey Fee will be charged with every order. It will be included as an item within the excess charges calculation and each resurvey additional to the first survey will increment the cost by a further £244.52 | B27: 01/04/2018 | D27: 244.52
A28: Breaking/Drilling through each external wall | B28: 02/01/2001 | C28: 29/08/2007 | D28: 270.00
A29: Breaking/Drilling through each external wall | B29: 30/08/2007 | C29: 31/03/2013 | D29: 330.00
A30: Breaking/Drilling through each external wall | B30: 01/04/2013 | C30: 31/03/2014 | D30: 235.37
A31: Breaking/Drilling through each external wall | B31: 01/04/2014 | C31: 31/03/2015 | D31: 238.33
A32: Breaking/Drilling through each external wall | B32: 01/04/2015 | C32: 31/07/2016 | D32: 242.73
A33: Breaking/Drilling through each external wall | B33: 01/08/2016 | C33: 31/03/2018 | D33: 220.81
A34: Breaking/Drilling through each external wall | B34: 01/04/2018 | D34: 220.83
A35: Breaking/Drilling through each internal concrete wall | B35: 02/01/2001 | C35: 29/08/2007 | D35: 150.00
A36: Breaking/Drilling through each internal concrete wall | B36: 30/08/2007 | C36: 31/03/2013 | D36: 200.00
A37: Breaking/Drilling through each internal concrete wall | B37: 01/04/2013 | C37: 31/03/2014 | D37: 142.22
A38: Breaking/Drilling through each internal concrete wall | B38: 01/04/2014 | C38: 31/03/2015 | D38: 144.01
A39: Breaking/Drilling through each internal concrete wall | B39: 01/04/2015 | C39: 31/07/2016 | D39: 146.67
A40: Breaking/Drilling through each internal concrete wall | B40: 01/08/2016 | C40: 31/03/2018 | D40: 175.97
A41: Breaking/Drilling through each internal concrete wall | B41: 01/04/2018 | D41: 175.98
A42: Breaking/Drilling through each internal non-concrete wall | B42: 02/01/2001 | C42: 31/03/2013 | D42: 60.00
A43: Breaking/Drilling through each internal non-concrete wall | B43: 01/04/2013 | C43: 31/03/2014 | D43: 43.06
A44: Breaking/Drilling through each internal non-concrete wall | B44: 01/04/2014 | C44: 31/03/2015 | D44: 43.60
A45: Breaking/Drilling through each internal non-concrete wall | B45: 01/04/2015 | C45: 31/07/2016 | D45: 44.40
A46: Breaking/Drilling through each internal non-concrete wall | B46: 01/08/2016 | C46: 30/09/2018 | D46: 55.91
A47: Breaking/Drilling through each internal non-concrete wall | B47: 01/10/2018 | D47: 33.56
A48: Provision of other building entry points (eg underground through floors) will be individually priced against customer requirements
A49: Provision of each Pole | B49: 02/01/2001 | C49: 29/08/2007 | D49: 400.00
A50: Provision of each Pole | B50: 30/08/2007 | C50: 31/07/2016 | D50: 550.00
A51: Provision of each Pole | B51: 01/08/2016 | C51: 31/03/2017 | D51: 465.66
A52: Provision of each Pole | B52: 01/04/2017 | C52: 31/03/2018 | D52: 394.89
A53: Provision of each Pole | B53: 01/04/2018 | C53: 30/11/2018 | D53: 410.16
A54: Provision of each Pole | B54: 01/12/2018 | D54: 412.11
A55: Provision of each Radio Mono Pole (Not provided via Openreach) | B55: 30/08/2007 | D55: N/A
A56: Provision of a new footway box (Surface area up to 0.5 sqm) Customers are advised that the smallest footway box necessary to provide service will be charged for. | B56: 30/08/2007 | C56: 31/03/2013 | D56: 750.00
A57: Provision of a new footway box (Surface area up to 0.5 sqm) Customers are advised that the smallest footway box necessary to provide service will be charged for. | B57: 01/04/2013 | C57: 31/03/2014 | D57: 696.12
A58: Provision of a new footway box (Surface area up to 0.5 sqm) Customers are advised that the smallest footway box necessary to provide service will be charged for. | B58: 01/04/2014 | C58: 31/03/2015 | D58: 704.89
A59: Provision of a new footway box (Surface area up to 0.5 sqm) Customers are advised that the smallest footway box necessary to provide service will be charged for. | B59: 01/04/2015 | C59: 31/07/2016 | D59: 717.93
A60: Provision of a new footway box (Surface area up to 0.5 sqm) Customers are advised that the smallest footway box necessary to provide service will be charged for. | B60: 01/08/2016 | C60: 31/03/2017 | D60: 814.74
A61: Provision of a new footway box (Surface area up to 0.5 sqm) Customers are advised that the smallest footway box necessary to provide service will be charged for. | B61: 01/04/2017 | C61: 31/03/2018 | D61: 801.36
A62: Provision of a new footway box (Surface area up to 0.5 sqm) Customers are advised that the smallest footway box necessary to provide service will be charged for. | B62: 01/04/2018 | C62: 30/09/2018 | D62: 855.23
A63: Provision of a new footway box (Surface area up to 0.5 sqm) | B63: 01/10/2018 | D63: 761.62
A64: Provision of a new medium size footway box (Surface area between 0.5 sqm and 1 sqm) | B64: 14/08/2008 | C64: 31/03/2013 | D64: 1,650.00
A65: Provision of a new medium size footway box (Surface area between 0.5 sqm and 1 sqm) | B65: 01/04/2013 | C65: 31/03/2014 | D65: 1,532.47
A66: Provision of a new medium size footway box (Surface area between 0.5 sqm and 1 sqm) | B66: 01/04/2014 | C66: 31/03/2015 | D66: 1,551.77
A67: Provision of a new medium size footway box (Surface area between 0.5 sqm and 1 sqm) | B67: 01/04/2015 | C67: 31/07/2016 | D67: 1,580.47
A68: Provision of a new medium size footway box (Surface area between 0.5 sqm and 1 sqm) | B68: 01/08/2016 | C68: 31/03/2017 | D68: 1,432.80
A69: Provision of a new medium size footway box (Surface area between 0.5 sqm and 1 sqm) | B69: 01/04/2017 | C69: 31/03/2018 | D69: 1,396.33
A70: Provision of a new medium size footway box (Surface area between 0.5 sqm and 1 sqm) | B70: 01/04/2018 | C70: 30/09/2018 | D70: 1,487.14
A71: Provision of a new medium size footway box (Surface area between 0.5 sqm and 1 sqm) | B71: 01/10/2018 | D71: 1,308.96
A72: Provision of a new large size footway box (Surface area greater than 1 sqm) | B72: 14/08/2008 | C72: 31/03/2013 | D72: 2,850.00
A73: Provision of a new large size footway box (Surface area greater than 1 sqm) | B73: 01/04/2013 | C73: 31/03/2014 | D73: 2,654.28
A74: Provision of a new large size footway box (Surface area greater than 1 sqm) | B74: 01/04/2014 | C74: 31/03/2015 | D74: 2,687.72
A75: Provision of a new large size footway box (Surface area greater than 1 sqm) | B75: 01/04/2015 | C75: 31/07/2016 | D75: 2,737.44
A76: Provision of a new large size footway box (Surface area greater than 1 sqm) | B76: 01/08/2016 | C76: 31/03/2017 | D76: 2,642.67
A77: Provision of a new large size footway box (Surface area greater than 1 sqm) | B77: 01/04/2017 | C77: 31/03/2018 | D77: 2,565.07
A78: Provision of a new large size footway box (Surface area greater than 1 sqm) | B78: 01/04/2018 | C78: 30/11/2018 | D78: 2,656.91
A79: Provision of a new large size footway box (Surface area greater than 1 sqm) | B79: 01/12/2018 | D79: 2,773.80
A80: Provision of a new small carriageway box (Surface area up to 1 sqm) Customers are advised that the smallest carriageway box necessary to provide service will be charged for. | B80: 14/08/2008 | C80: 31/03/2013 | D80: 3,150.00
A81: Provision of a new small carriageway box (Surface area up to 1 sqm) Customers are advised that the smallest carriageway box necessary to provide service will be charged for. | B81: 01/04/2013 | C81: 31/03/2014 | D81: 2,453.96
A82: Provision of a new small carriageway box (Surface area up to 1 sqm) Customers are advised that the smallest carriageway box necessary to provide service will be charged for. | B82: 01/04/2014 | C82: 31/03/2015 | D82: 2,484.87
A83: Provision of a new small carriageway box (Surface area up to 1 sqm) Customers are advised that the smallest carriageway box necessary to provide service will be charged for. | B83: 01/04/2015 | C83: 31/07/2016 | D83: 2,530.84
A84: Provision of a new small carriageway box (Surface area up to 1 sqm) Customers are advised that the smallest carriageway box necessary to provide service will be charged for. | B84: 01/08/2016 | C84: 31/03/2017 | D84: 2,936.44
A85: Provision of a new small carriageway box (Surface area up to 1 sqm) Customers are advised that the smallest carriageway box necessary to provide service will be charged for. | B85: 01/04/2017 | C85: 31/03/2018 | D85: 2,889.58
A86: Provision of a new small carriageway box (Surface area up to 1 sqm) Customers are advised that the smallest carriageway box necessary to provide service will be charged for. | B86: 01/04/2018 | C86: 30/09/2018 | D86: 2,968.63
A87: Provision of a new small carriageway box (Surface area up to 1 sqm) | B87: 01/10/2018 | D87: 2,226.35
A88: Provision of a new medium size carriageway box (Surface area between 1 sqm and 1.25 sqm) | B88: 14/08/2008 | C88: 31/03/2013 | D88: 3,850.00
A89: Provision of a new medium size carriageway box (Surface area between 1 sqm and 1.25 sqm) | B89: 01/04/2013 | C89: 31/03/2014 | D89: 3,004.84
A90: Provision of a new medium size carriageway box (Surface area between 1 sqm and 1.25 sqm) | B90: 01/04/2014 | C90: 31/03/2015 | D90: 3,042.70
A91: Provision of a new medium size carriageway box (Surface area between 1 sqm and 1.25 sqm) | B91: 01/04/2015 | C91: 31/07/2016 | D91: 3,098.98
A92: Provision of a new medium size carriageway box (Surface area between 1 sqm and 1.25 sqm) | B92: 01/08/2016 | C92: 23/05/2017 | D92: 3,253.86
A93: Provision of a new medium size carriageway box (Surface area between 1 sqm and 1.25 sqm) | B93: 24/05/2017 | C93: 31/03/2018 | D93: 3,600.42
A94: Provision of a new medium size carriageway box (Surface area between 1 sqm and 1.25 sqm) | B94: 01/04/2018 | C94: 30/11/2018 | D94: 3,405.56
A95: Provision of a new medium size carriageway box (Surface area between 1 sqm and 1.25 sqm) | B95: 01/12/2018 | D95: 3,440.63
A96: Provision of a new large size carriageway box (Surface area greater than 1.25 sqm) | B96: 14/08/2008 | C96: 31/03/2013 | D96: 4,400.00
A97: Provision of a new large size carriageway box (Surface area greater than 1.25 sqm) | B97: 01/04/2013 | C97: 31/03/2014 | D97: 3,435.54
A98: Provision of a new large size carriageway box (Surface area greater than 1.25 sqm) | B98: 01/04/2014 | C98: 31/03/2015 | D98: 3,478.82
A99: Provision of a new large size carriageway box (Surface area greater than 1.25 sqm) | B99: 01/04/2015 | C99: 31/07/2016 | D99: 3,543.17
A100: Provision of a new large size carriageway box (Surface area greater than 1.25 sqm) | B100: 01/08/2016 | C100: 23/05/2017 | D100: 4,464.45
A101: Provision of a new large size carriageway box (Surface area greater than 1.25 sqm) | B101: 24/05/2017 | C101: 31/03/2018 | D101: 4,568.68
A102: Provision of a new large size carriageway box (Surface area greater than 1.25 sqm) | B102: 01/04/2018 | D102: 4,603.19
A103: Cable (fibre or copper) including any jointing required (per metre) | B103: 02/01/2001 | C103: 29/08/2007 | E103: 11.20
A104: Cable (fibre or copper) including any jointing required (per metre) | B104: 30/08/2007 | C104: 31/03/2013 | E104: 7.50
A105: Cable (fibre or copper) including any jointing required (per metre) | B105: 01/04/2013 | C105: 31/03/2014 | E105: 4.40
A106: Cable (fibre or copper) including any jointing required (per metre) | B106: 01/04/2014 | C106: 31/03/2015 | E106: 4.45
A107: Cable (fibre or copper) including any jointing required (per metre) | B107: 01/04/2015 | C107: 31/07/2016 | E107: 4.53
A108: Cable (fibre or copper) including any jointing required (per metre) | B108: 01/08/2016 | C108: 31/03/2017 | E108: 5.60
A109: Cable (fibre or copper) including any jointing required (per metre) | B109: 01/04/2017 | C109: 01/04/2017 | E109: 6.62
A110: Cable (fibre or copper) including any jointing required (per metre) | B110: 01/04/2017 | C110: 31/03/2018 | E110: 6.27
A111: Cable (fibre or copper) including any jointing required (per metre) | B111: 01/04/2018 | C111: 31/01/2019 | E111: 7.54
A112: Cable (fibre or copper) including any jointing required (per metre) | B112: 01/02/2019 | E112: 7.53
A113: Copper cable supplied for the customer to lay to agreed entry and termination points (per metre). (minimum 20m supply) This charge includes on site termination and jointing work by Openreach to connect and terminate the cable. If the order is for less than 40 metres then a visit charge will apply - Please See Visit Charges for details. | B113: 01/09/2005 | C113: 29/08/2007 | E113: 5.60
A114: Copper cable supplied for the customer to lay to agreed entry and termination points (per metre). (minimum 20m supply) This charge includes on site termination and jointing work by Openreach to connect and terminate the cable. If the order is for less than 40 metres then a visit charge will apply - Please See Visit Charges for details. | B114: 30/08/2007 | E114: 4.00
A115: Directly buried cable (including any cable and wayleave costs) (per metre) | B115: 30/08/2007 | E115: 30.00
A116: Moleploughing cable or fibre in subduct (includes any cable and wayleave costs) (per metre) | B116: 30/08/2007 | C116: 30/09/2018 | E116: 25.00
A117: Moleploughing cable or fibre in subduct (includes any cable and wayleave costs) (per metre) | B117: 01/10/2018 | E117: 16.85
A118: Blown Fibre (per metre) | B118: 30/06/2007 | C118: 31/03/2013 | E118: 4.00
A119: Blown Fibre (per metre) | B119: 01/04/2013 | C119: 31/03/2014 | E119: 3.10
A120: Blown Fibre (per metre) | B120: 01/04/2014 | C120: 31/03/2015 | E120: 3.13
A121: Blown Fibre (per metre) | B121: 01/04/2015 | C121: 30/04/2016 | E121: 3.18
A122: Blown Fibre (per metre) | B122: 01/05/2016 | C122: 31/03/2017 | E122: 2.52
A123: Blown Fibre (per metre) | B123: 01/04/2017 | C123: 31/03/2018 | E123: 2.07
A124: Blown Fibre (per metre) | B124: 01/04/2018 | E124: 1.74
A125: Blown Fibre Tubing in Duct (per metre) | B125: 30/06/2007 | C125: 31/03/2013 | E125: 3.50
A126: Blown Fibre Tubing in Duct (per metre) | B126: 01/04/2013 | C126: 31/03/2014 | E126: 2.80
A127: Blown Fibre Tubing in Duct (per metre) | B127: 01/04/2014 | C127: 31/03/2015 | E127: 2.83
A128: Blown Fibre Tubing in Duct (per metre) | B128: 01/04/2015 | C128: 31/07/2016 | E128: 2.88
A129: Blown Fibre Tubing in Duct (per metre) | B129: 01/08/2016 | C129: 31/03/2017 | E129: 3.22
A130: Blown Fibre Tubing in Duct (per metre) | B130: 01/04/2017 | C130: 01/04/2017 | E130: 3.53
A131: Blown Fibre Tubing in Duct (per metre) | B131: 01/04/2017 | C131: 31/03/2018 | E131: 3.43
A132: Blown Fibre Tubing in Duct (per metre) | B132: 01/04/2018 | E132: 3.83
A133: Fibre Cable (per metre) | B133: 01/12/2017 | C133: 30/11/2018 | E133: 5.50
A134: Fibre Cable (per metre) | B134: 01/12/2018 | E134: 5.57
A135: Internal cabling (including Internal Blown Fibre Tubing) (per metre) | B135: 30/06/2007 | C135: 31/03/2013 | E135: 8.00
A136: Internal cabling (including Internal Blown Fibre Tubing) (per metre) | B136: 01/04/2013 | C136: 31/03/2014 | E136: 5.00
A137: Internal cabling (including Internal Blown Fibre Tubing) (per metre) | B137: 01/04/2014 | C137: 31/03/2015 | E137: 5.06
A138: Internal cabling (including Internal Blown Fibre Tubing) (per metre) | B138: 01/04/2015 | C138: 31/07/2016 | E138: 5.15
A139: Internal cabling (including Internal Blown Fibre Tubing) (per metre) | B139: 01/08/2016 | C139: 31/03/2017 | E139: 5.97
A140: Internal cabling (including Internal Blown Fibre Tubing) (per metre) | B140: 01/04/2017 | C140: 01/04/2017 | E140: 6.73
A141: Internal cabling (including Internal Blown Fibre Tubing) (per metre) | B141: 01/04/2017 | C141: 31/03/2018 | E141: 6.47
A142: Internal cabling (including Internal Blown Fibre Tubing) (per metre) | B142: 01/04/2018 | E142: 7.42
A143: New Ductwork - Softsurface (includes wayleave costs) (per metre) | B143: 30/08/2007 | C143: 31/03/2013 | E143: 35.00
A144: New Ductwork - Softsurface (includes wayleave costs) (per metre) | B144: 01/04/2013 | C144: 31/03/2014 | E144: 20.03
A145: New Ductwork - Softsurface (includes wayleave costs) (per metre) | B145: 01/04/2014 | C145: 31/03/2015 | E145: 20.28
A146: New Ductwork - Softsurface (includes wayleave costs) (per metre) | B146: 01/04/2015 | C146: 31/07/2016 | E146: 20.65
A147: New Ductwork - Softsurface (includes wayleave costs) (per metre) | B147: 01/08/2016 | C147: 23/05/2017 | E147: 28.61
A148: New Ductwork - Softsurface (includes wayleave costs) (per metre) | B148: 24/05/2017 | C148: 31/03/2018 | E148: 28.79
A149: New Ductwork - Softsurface (includes wayleave costs) (per metre) | B149: 01/04/2018 | C149: 30/11/2018 | E149: 29.76
A150: New Ductwork - Softsurface (includes wayleave costs) (per metre) | B150: 01/12/2018 | E150: 32.71
A151: New Ductwork - Footway (includes wayleave costs) (per metre) | B151: 30/08/2007 | C151: 31/03/2013 | E151: 80.00
A152: New Ductwork - Footway (includes wayleave costs) (per metre) | B152: 01/04/2013 | C152: 31/03/2014 | E152: 40.06
A153: New Ductwork - Footway (includes wayleave costs) (per metre) | B153: 01/04/2014 | C153: 31/03/2015 | E153: 40.56
A154: New Ductwork - Footway (includes wayleave costs) (per metre) | B154: 01/04/2015 | C154: 31/07/2016 | E154: 41.31
A155: New Ductwork - Footway (includes wayleave costs) (per metre) | B155: 01/08/2016 | C155: 23/05/2017 | E155: 60.40
A156: New Ductwork - Footway (includes wayleave costs) (per metre) | B156: 24/05/2017 | C156: 31/03/2018 | E156: 60.70
A157: New Ductwork - Footway (includes wayleave costs) (per metre) | B157: 01/04/2018 | C157: 30/11/2018 | E157: 63.25
A158: New Ductwork - Footway (includes wayleave costs) (per metre) | B158: 01/12/2018 | E158: 66.54
A159: New Ductwork - Carriageway (includes wayleave costs) (per metre) | B159: 30/08/2007 | C159: 31/03/2013 | E159: 140.00
A160: New Ductwork - Carriageway (includes wayleave costs) (per metre) | B160: 01/04/2013 | C160: 31/03/2014 | E160: 80.12
A161: New Ductwork - Carriageway (includes wayleave costs) (per metre) | B161: 01/04/2014 | C161: 31/03/2015 | E161: 81.12
A162: New Ductwork - Carriageway (includes wayleave costs) (per metre) | B162: 01/04/2015 | C162: 31/07/2016 | E162: 82.62
A163: New Ductwork - Carriageway (includes wayleave costs) (per metre) | B163: 01/08/2016 | C163: 23/05/2017 | E163: 110.07
A164: New Ductwork - Carriageway (includes wayleave costs) (per metre) | B164: 24/05/2017 | C164: 31/03/2018 | E164: 112.05
A165: New Ductwork - Carriageway (includes wayleave costs) (per metre) | B165: 01/04/2018 | C165: 30/11/2018 | E165: 116.07
A166: New Ductwork - Carriageway (includes wayleave costs) (per metre) | B166: 01/12/2018 | E166: 119.22
A167: Trunking and traywork within enduser's curtilage (per metre) | B167: 02/01/2001 | C167: 31/03/2013 | E167: 40.00
A168: Trunking and traywork within enduser's curtilage (per metre) | B168: 01/04/2013 | C168: 31/03/2014 | E168: 29.04
A169: Trunking and traywork within enduser's curtilage (per metre) | B169: 01/04/2014 | C169: 31/03/2015 | E169: 29.40
A170: Trunking and traywork within enduser's curtilage (per metre) | B170: 01/04/2015 | C170: 31/07/2016 | E170: 29.94
A171: Trunking and traywork within enduser's curtilage (per metre) | B171: 01/08/2016 | C171: 30/09/2018 | E171: 37.91
A172: Trunking and traywork within enduser's curtilage (per metre) | B172: 01/10/2018 | E172: 13.49
A173: Overblow Services (per 100 metres) | B173: 01/10/2018 | E173: 368.64
A175: For all items charged per metre: Part metres will be rounded upwards as if they were full metres for billing purposes For Overblow services:Unit metres will be rounded upwards to the nearest 100 metres for billing purposes Miscellaneous or non standard items will be priced on application. (This can include joint boxes that are larger than the normal item defined in the price list) Additional charges will be raised where applicable for:Internal/external shiftsOut of Hours (Time Related Charges will apply) The above charges will apply to requirements on the customer or end user's premises, and on third party land and the public highway or BT exchange (subject to any applicable third party and/or planning consents required) Traffic Management Charges will be charged as additional miscellaneous charges. Incorrect price increases for Cable (fibre or copper), Blown Fibre and Blown fibre tubing in duct products were notified in ACCN OR482 to come into effect on 1 April 2017. These three specific prices will not now apply, but revised (lower) price increases will come into effect instead on the same day.
A178: Exemptions From Excess Charges
A180: Excess construction charges are paid at the same time as the normal product connection charges. The table below details exemptions from excess construction charges. Exemptions apply to individual sites and are not transferable to other sites. Only one exemption is available per site. If the customer requests a method of providing service which is more costly than the least cost network solution Openreach would normally provide it will charge the customer the actual charges for this requested method of providing service less the lower of either: (a) the exemption or; (b) the full charges for the least cost network solution General condition - applies to Wholesale Access, Wholesale Digital Access and Local Loop Unbundling Where an order is received for concurrent provision of service to a number of individual end user sites (including those in multi-tenanted premises) on the same date, the exemption for each end user can be added together and the exemptions will be applied collectively. However, this only applies to the concurrent provision work on the same date and the application of the exemption cannot be deferred to a later date. EXEMPTIONS
A182: Feature | B182: Description | C182: Operative date | D182: Until | E182: Exemption limit £ Exc VAT
A183: General Exemptions | B183: No exemption will apply to: - Non-Served Premises | C183: 30/08/2007 | E183: 0.00
A184: General Exemptions | B184: No exemption will apply to: - Short Duration Lines | C184: 30/08/2007 | E184: 0.00
A185: General Exemptions | B185: No exemption will apply to: - Time Related Charges for out of hours working | C185: 30/08/2007 | E185: 0.00
A186: General Exemptions | B186: No exemption will apply to: - Alternatively Routed Lines | C186: 30/08/2007 | E186: 0.00
A187: General Exemptions | B187: No exemption will apply to: - Furnished holiday lettings, Holiday caravans, chalets, log cabins etc. on a holiday site, premises used as a second home. | C187: 30/08/2007 | E187: 0.00
A188: General Exemptions | B188: No exemption is available if an exemption has been given already at the site on an earlier occasion | C188: 30/08/2007 | E188: 0.00
A189: Specific Exemption - Removal of DACS equipment | B189: The first £8000 of cost to remove DACS equipment will not be raised, where required. | C189: 01/04/2013 | E189: 8,000.00
A190: Product - Wholesale Access | B190: First Line. - The first £3400.00 of charges will not be raised against the first narrowband voice service provided at a site. | C190: 30/08/2007 | E190: 3,400.00
A191: Product - Wholesale Access | B191: Second and subsequent lines. - Only one exemption is available per premise. If no other exemption has been applied to a premise the first £1000 of charges will not be raised where network capacity needs to be increased for second or subsequent lines at that premise. | C191: 30/08/2007 | D191: 30/04/2011 | E191: 1,000.00
A192: Product - Wholesale Access | B192: Second line - The first £1000.00 of charges will not be raised against the second narrowband voice service provided at a site. However, only one exemption is available per premise. If another exemption has been applied to a premise this exemption does not apply. | C192: 01/05/2011 | E192: 1,000.00
A193: Product - Local Loop Unbundling | B193: First Narrowband Line. - The first £3400 of charges will not be raised against the first narrowband voice service provided at a site. | C193: 30/08/2007 | E193: 3,400.00
A194: Product - Local Loop Unbundling | B194: Second and subsequent lines or Non Voice Narrowband line. - Only one exemption is available per premise. If no other exemption has been applied to a premise the first £1000 of charges will not be raised where network capacity needs to be increased for second or subsequent lines at that premise. | C194: 30/08/2007 | D194: 30/04/2011 | E194: 1,000.00
A195: Product - Local Loop Unbundling | B195: Second Narrowband line - The first £1000.00 of charges will not be raised against the second narrowband voice service provided at a site. However, only one exemption is available per premise. If another exemption has been applied to a premise this exemption does not apply. | C195: 01/05/2011 | E195: 1,000.00
A196: Product - Sub Loop Unbundling | B196: First Narrowband Line. - The first £3400 of charges will not be raised against the first narrowband voice service provided at a site. | C196: 07/08/2013 | E196: 3,400.00
A197: Product - Sub Loop Unbundling | B197: Second Narrowband line - The first £1000.00 of charges will not be raised against the second narrowband voice service provided at a site. However, only one exemption is available per premise. If another exemption has been applied to a premise this exemption does not apply. | C197: 07/08/2013 | E197: 1,000.00
A198: Product - Wholesale Digital Access (ISDN2 products) - also applicable if service is provided by conversion of exchange lines. | B198: Only one exemption is available per premise. If no other exemption has been applied to a premise the first £1000 of charges will not be raised where network capacity needs to be increased for second or subsequent lines at that premise. | C198: 30/08/2007 | D198: 30/04/2011 | E198: 1,000.00
A199: Product - Wholesale Digital Access (ISDN2 products) - also applicable if service is provided by conversion of exchange lines. | B199: Only one exemption is available per premise. If no other exemption has been applied to a premise the first £1000 of charges will not be raised where network capacity needs to be increased. | C199: 01/05/2011 | E199: 1,000.00
A200: Product - Wholesale ISDN30 | B200: No exemptions to the existing or a previous customer. Excess Charges do not apply for Wholesale ISDN30 products where existing capacity needs to be increased. | C200: 30/08/2007 | E200: 0.00
A201: Product: Ethernet Access Direct (EAD) circuits, excluding Resilient Option 1 variants. | B201: Exemption applies after the introduction date. ECCs will be calculated using the unit rates, but only communicated during the order process and billed if they exceed the exemption level. This exemption is funded through the raising of an ECC Fixed Fee on all EAD circuits (excluding Resilient Option 1) which is billed as part of the connection charge. The ECC Fixed Fee is detailed at 3.2.3 Ethernet Access Direct (EAD) including EAD Enable. | C201: 01/06/2014 | E201: 2,800.00
A202: Product: Street Access 100Mbps 60 month minimum period commitment | B202: Exemption applies after the introduction date. ECCs will be calculated using the unit rates, but only communicated during the order process and billed if they exceed the exemption level. | C202: 27/07/2016 | E202: 2,800.00
A203: Product - Private Circuits, WES/BES circuits and Broadband conversions of analogue lines) | B203: No exemptions to the existing or a previous customer. Excess Charges do not apply for WES/BES & EBD/BTL products where existing capacity needs to be increased. | C203: 30/08/2007 | E203: 0.00
A204: Product - Generic Ethernet Access Fibre to the Premises (FTTP) at Brownfield sites | B204: Exemption is applied to only the first service installed per premise. If no previous GEA installation exemption has been applied to a premise, the first £1000 of charges will not be raised where additional 'last drop' provision work from the fibre Distribution Point (DP) into the end user premises is required. | C204: 02/07/2012 | E204: 1,000.00
A205: Product - Generic Ethernet Access Fibre to the Premises (FTTP) on Demand - Pilot Phase 2 | B205: Exemption is applied to GEA FTTP on Demand orders raised as part of the Pilot Phase 2 only. These prices relate to Pilot Phase 2 only and should not be taken as an indication of the launch pricing structure or prices. | C205: 01/03/2013 | D205: 26/04/2013 | E205: 4,950.00
A206: Product - Generic Ethernet Access Fibre to the Premises (FTTP) on Demand | B206: Exemption is applied to GEA FTTP on Demand orders raised from 29/4/13 which are calculated using threshold cost values. The specific ECC charge, where applicable, will be provided on an individual order basis. These prices relate to the Early Market Deployment of GEA FTTP on Demand only and should not be taken as an indication of the launch pricing structure or prices. | C206: 29/04/2013 | E206: On Application
D209: Openreach Limited
D210: Registered Office:
A211: Date: 19 December 2018 | D211: Kelvin House, 123 Judd Street,
D212: London WCIH 9NP
D213: Registered in England and Wales no. 10690039
D214: www.openreach.co.uk

Sheet PIA - Duct products
A1: Source:
A2: https://www.openreach.co.uk/orpg/home/products/pricing/loadProductPriceDetails.do?data=z75T9D0yfFKL0UorCMMA7OVMbA8c5ofXzFv23yZvBj9Z6rNZujnCs99NbIKJZPD9hXYmiijxH6wrCQm97GZMyQ%3D%3D
A3: Price list
A6: Product line: | B6: Physical Infrastructure Pricing
A7: First level product: | B7: Physical Infrastructure Products
A8: Second level product: | B8: Duct Products
A9: Version | B9: N/A
A12: Duct Products
A14: The following table contains the core products for Duct sharing. Definitions of Spine duct and Lead-in duct are contained in the Product Description. The Licence Fee (per annum) is calculated by adding together the relevant Duct and Pole Products with the Ancillary Fees, e.g. Customer Apparatus In-line Splice hosting and distribution joints.
A16: Feature | B16: Note | C16: Operative date | D16: Until | E16: Minimum Licence Period (years) | F16: Charge per annum £ Exc VAT | G16: Charge per annum for BDUK related bids £ Exc VAT
A17: Facility in Spine duct per metre - single bore | B17: 1, 3 | C17: 02/08/2012 | D17: 15/09/2013 | E17: 5 | F17: 0.86 | G17: 0.60
A18: Facility in Spine duct per metre - single bore | B18: 1, 3, 5 | C18: 16/09/2013 | D18: 30/04/2018 | E18: 5 | F18: 0.60 | G18: n/a
A19: Facility in Spine duct per metre - single bore | B19: 1, 3, 5, 6, 9 | C19: 01/05/2018 | E19: 5 | F19: 0.28 | G19: n/a
A20: Facility in Spine duct per metre - 2 bores | B20: 1, 3, 4 | C20: 02/08/2012 | D20: 15/09/2013 | E20: 5 | F20: 0.54 | G20: 0.43
A21: Facility in Spine duct per metre - 2 bores | B21: 1, 3, 4, 5 | C21: 16/09/2013 | D21: 30/04/2018 | E21: 5 | F21: 0.43 | G21: n/a
A22: Facility in Spine duct per metre - 2 bores | B22: 1, 3, 4, 5, 7, 9 | C22: 01/05/2018 | E22: 5 | F22: 0.18 | G22: n/a
A23: Facility in Spine duct per metre - 3+ bores | B23: 1, 3, 4 | C23: 02/08/2012 | D23: 15/09/2013 | E23: 5 | F23: 0.44 | G23: 0.37
A24: Facility in Spine duct per metre - 3+ bores | B24: 1, 3, 4, 5 | C24: 16/09/2013 | D24: 30/04/2018 | E24: 5 | F24: 0.37 | G24: n/a
A25: Facility in Spine duct per metre - 3+ bores | B25: 1, 3, 4, 5, 8, 9 | C25: 01/05/2018 | E25: 5 | F25: 0.13 | G25: n/a
A26: Facility in Lead-in duct per metre | B26: 1, 3 | C26: 02/08/2012 | D26: 15/09/2013 | E26: n/a | F26: 1.34 | G26: 0.84
A27: Facility in Lead-in duct per metre | B27: 1, 3, 5 | C27: 16/09/2013 | D27: 30/04/2018 | E27: n/a | F27: 0.84 | G27: n/a
A28: Facility in Lead-in duct per metre | B28: 1, 3, 5, 9 | C28: 01/05/2018 | D28: 31/03/2019 | E28: n/a | F28: 0.55 | G28: n/a
A29: Facility in Lead-in duct per metre | B29: 1, 3, 5, 10 | C29: 01/04/2019 | E29: n/a | F29: 0.56 | G29: n/a
A30: Facility in Lead-in link duct per metre (lead in rate) | B30: 1, 2, 3 | C30: 02/08/2012 | D30: 15/09/2013 | E30: n/a | F30: 1.34 | G30: 0.84
A31: Facility in Lead-in link duct per metre (lead in rate) | B31: 1, 2, 3, 5 | C31: 16/09/2013 | D31: 30/04/2018 | E31: n/a | F31: 0.84 | G31: n/a
A32: Facility in Lead-in link duct per metre (lead in rate) | B32: 1, 2, 3, 5, 9 | C32: 01/05/2018 | D32: 31/03/2019 | E32: n/a | F32: 0.55 | G32: n/a
A33: Facility in Lead-in link duct per metre (lead in rate) | B33: 1, 2, 3, 5, 10 | C33: 01/04/2019 | E33: n/a | F33: 0.56 | G33: n/a
A34: Facility in Lead-in link duct per metre (spine single bore rate) | B34: 1, 2, 3 | C34: 02/08/2012 | D34: 15/09/2013 | E34: n/a | F34: 0.86 | G34: 0.60
A35: Facility in Lead-in link duct per metre (spine single bore rate) | B35: 1, 2, 3, 5 | C35: 16/09/2013 | D35: 30/04/2018 | E35: n/a | F35: 0.60 | G35: n/a
A36: Facility in Lead-in link duct per metre (spine single bore rate) | B36: 1, 2, 3, 5, 6, 9 | C36: 01/05/2018 | E36: n/a | F36: 0.28 | G36: n/a
A37: Facility in Lead-in link duct per metre (spine 2 bore rate) | B37: 1, 2, 3, 4 | C37: 02/08/2012 | D37: 15/09/2013 | E37: n/a | F37: 0.54 | G37: 0.43
A38: Facility in Lead-in link duct per metre (spine 2 bore rate) | B38: 1, 2, 3, 4, 5 | C38: 16/09/2013 | D38: 30/04/2018 | E38: n/a | F38: 0.43 | G38: n/a
A39: Facility in Lead-in link duct per metre (spine 2 bore rate) | B39: 1, 2, 3, 4, 5, 7, 9 | C39: 01/05/2018 | E39: n/a | F39: 0.18 | G39: n/a
A40: Facility in Lead-in link duct per metre (spine 3+ bore rate) | B40: 1, 2, 3, 4 | C40: 02/08/2012 | D40: 15/09/2013 | E40: n/a | F40: 0.44 | G40: 0.37
A41: Facility in Lead-in link duct per metre (spine 3+ bore rate) | B41: 1, 2, 3, 4, 5 | C41: 16/09/2013 | D41: 30/04/2018 | E41: n/a | F41: 0.37 | G41: n/a
A42: Facility in Lead-in link duct per metre (spine 3+ bore rate) | B42: 1, 2, 3, 4, 5, 8, 9 | C42: 01/05/2018 | E42: n/a | F42: 0.13 | G42: n/a
A44: Notes:
A45: 1. Not used. 2. Where a lead-in passes into a 90mm duct from an Openreach junction box hosting the Copper DP, the &lsquo;lead-in link&rsquo; product should be used. For this product, spine duct rates will apply for the portion of the route from the junction box to the swept-t joint or frontage-t joint. Lead-in rates apply thereafter. 3. Rental is for per metre of direct cable, blown fibre tubing or sub-duct of diameter up to 25mm. 4. The 2 bore rate will apply where a CP rents a facility in a route containing 2 bores. The 3+ bore rate will apply where a CP rents a facility in a route containing 3 or more bores. 5. From 16/09/2013, the distinction between BDUK and Non BDUK regional prices was removed and a single price now applies. 6. Openreach amends its process for billing for products where the annual charge is not divisible by twelve. Openreach will flex the monthly charges by a penny up or down, so that over the course of the year the total price charged is no more than the Ofcom charge ceiling. The flexing of the monthly charges is shown below. For the period 1 May 2018 to 31 March 2019:May to October &pound;0.03November to March &pound;0.02 For the period 1 April 2019 to 31 March 2020:April to July &pound;0.03August to March &pound;0.02 7. Openreach amends its process for billing for products where the annual charge is not divisible by twelve. Openreach will flex the monthly charges by a penny up or down, so that over the course of the year the total price charged is no more than the Ofcom charge ceiling. The flexing of the monthly charges is shown below. For the period 1 May 2018 to 31 March 2019:May to August &pound;0.01September to March &pound;0.02 For the period 1 April 2019 to 31 March 2020:April to September &pound;0.02October to March &pound;0.01 8. Openreach amends its process for billing for products where the annual charge is not divisible by twelve.Openreach will flex the monthly charges by a penny up or down, so that over the course of the year the total price charged is no more than the Ofcom charge ceiling. The flexing of the monthly charges is shown below. For the period 1 May 2018 to 31 March 2019:May to January &pound;0.01Feb to March &pound;0.02 For the period 1 April 2019 to 31 March 2020:April &pound;0.02May to March &pound;0.01 9. For 2018/19 charge per annum applies for First Relevant PIA Year from 1 May 2018 to 31 March 2019 10. Openreach amends its process for billing for products where the annual charge is not divisible by twelve. Openreach will flex the monthly charges by a penny up or down, so that over the course of the year the total price charged is no more than the Ofcom charge ceiling. The flexing of the monthly charges is shown below. For the period 1 April 2019 to 31 March 2020:April to November &pound;0.05December to March &pound;0.04
D47: Openreach Limited
D48: Registered Office:
A49: Date: 04 March 2019 | D49: Kelvin House, 123 Judd Street,
D50: London WCIH 9NP
D51: Registered in England and Wales no. 10690039
D52: www.openreach.co.uk

Sheet PIA - Ancillary activities
A1: Source
A2: https://www.openreach.co.uk/orpg/home/products/pricing/loadProductPriceDetails.do?data=%2BxxzCdLXlVS2hHTfdTw%2FyFpqGjRTzjXv9ULYqsx2PF89q%2FCUHfmZJHKkF036xG69e6YShZ82RgLOGLsH2e9%2Bmw%3D%3D
A3: Price list
A6: Product line: | B6: Physical Infrastructure Pricing
A7: First level product: | B7: Physical Infrastructure Products
A8: Second level product: | B8: New Build, Enabling Works, Ancillary Items and Network Adjustments
A9: Version | B9: N/A
A12: New Build, Enabling Works, Ancillary Items and Network Adjustments
A15: Underground works (1)
A17: Feature | B17: Note | C17: Operative date | D17: Until | E17: Charge £ Exc VAT
A18: New Small Footway Box | B18: 1 | C18: 20/12/2011 | D18: 30/06/2013 | E18: 825.00
A19: New Small Footway Box | B19: 1 | C19: 01/07/2013 | D19: 30/09/2017 | E19: 766.00
A20: New Small Footway Box | B20: 1 | C20: 01/10/2017 | D20: 30/06/2018 | E20: 881.50
A21: New Small Footway Box | B21: 1 | C21: 01/07/2018 | D21: 07/10/2018 | E21: 940.75
A22: New Small Footway Box | B22: 1 | C22: 08/10/2018 | E22: 837.78
A23: New Medium Footway Box | B23: 1 | C23: 20/12/2011 | D23: 30/06/2013 | E23: 1,815.00
A24: New Medium Footway Box | B24: 1 | C24: 01/07/2013 | D24: 30/09/2017 | E24: 1,686.00
A25: New Medium Footway Box | B25: 1 | C25: 01/10/2017 | D25: 30/06/2018 | E25: 1,535.96
A26: New Medium Footway Box | B26: 1 | C26: 01/07/2018 | D26: 07/10/2018 | E26: 1,635.85
A27: New Medium Footway Box | B27: 1 | C27: 08/10/2018 | E27: 1,439.85
A28: New Large Footway Box | B28: 1 | C28: 20/12/2011 | D28: 30/06/2013 | E28: 3,135.00
A29: New Large Footway Box | B29: 1 | C29: 01/07/2013 | D29: 30/09/2017 | E29: 2,920.00
A30: New Large Footway Box | B30: 1 | C30: 01/10/2017 | D30: 30/06/2018 | E30: 2,821.58
A31: New Large Footway Box | B31: 1 | C31: 01/07/2018 | D31: 06/12/2018 | E31: 2,922.60
A32: New Large Footway Box | B32: 1 | C32: 07/12/2018 | E32: 3,051.18
A33: New Small Carriageway Box | B33: 1 | C33: 20/12/2011 | D33: 30/06/2013 | E33: 3,465.00
A34: New Small Carriageway Box | B34: 1 | C34: 01/07/2013 | D34: 30/09/2017 | E34: 2,700.00
A35: New Small Carriageway Box | B35: 1 | C35: 01/10/2017 | D35: 30/06/2018 | E35: 3,178.54
A36: New Small Carriageway Box | B36: 1 | C36: 01/07/2018 | D36: 07/10/2018 | E36: 3,265.49
A37: New Small Carriageway Box | B37: 1 | C37: 08/10/2018 | E37: 2,448.98
A38: New Medium Carriageway Box | B38: 1 | C38: 20/12/2011 | D38: 30/06/2013 | E38: 4,235.00
A39: New Medium Carriageway Box | B39: 1 | C39: 01/07/2013 | D39: 30/09/2017 | E39: 3,306.00
A40: New Medium Carriageway Box | B40: 1 | C40: 01/10/2017 | D40: 30/04/2018 | E40: 3,960.46
A41: New Medium Carriageway Box | B41: 1 | C41: 01/05/2018 | D41: 06/12/2018 | E41: 3,746.11
A42: New Medium Carriageway Box | B42: 1 | C42: 07/12/2018 | E42: 3,784.69
A43: New Large carriageway Box | B43: 1 | C43: 20/12/2011 | D43: 30/06/2013 | E43: 4,840.00
A44: New Large carriageway Box | B44: 1 | C44: 01/07/2013 | D44: 30/09/2017 | E44: 3,780.00
A45: New Large carriageway Box | B45: 1 | C45: 01/10/2017 | D45: 30/06/2018 | E45: 5,025.55
A46: New Large carriageway Box | B46: 1 | C46: 01/07/2018 | E46: 5,063.50
A47: Joint box breakthrough | B47: 2 | C47: 20/12/2011 | D47: 30/04/2018 | E47: 600.00
A48: Joint box breakthrough | B48: 2 | C48: 01/05/2018 | D48: 31/05/2019 | E48: 566.35
A49: Joint box breakthrough | B49: 2 | C49: 01/06/2019 | E49: 581.41
A50: Demolish chamber | C50: 01/04/2019 | E50: 361.57
A51: Joint Chamber/Manhole 'pull through'; per 100m sub-duct | B51: 3 | C51: 20/12/2011 | D51: 30/09/2017 | E51: 522.00
A52: Joint Chamber/Manhole 'pull through'; per 100m sub-duct | B52: 3 | C52: 01/10/2017 | E52: 175.70
A55: Underground works (2)
A57: Feature | B57: Note | C57: Operative date | D57: Until | E57: Charge £ Exc VAT
A58: New Duct - soft; per metre | B58: 4 | C58: 20/12/2011 | D58: 30/06/2013 | E58: 39.00
A59: New Duct - soft; per metre | B59: 4 | C59: 01/07/2013 | D59: 30/09/2017 | E59: 23.00
A60: New Duct - soft; per metre | B60: 4 | C60: 01/10/2017 | D60: 30/06/2018 | E60: 31.67
A61: New Duct - soft; per metre | B61: 4 | C61: 01/07/2018 | D61: 06/12/2018 | E61: 32.73
A62: New Duct - soft; per metre | B62: 4 | C62: 07/12/2018 | E62: 35.98
A63: New Duct - footway; per metre | B63: 4 | C63: 20/12/2011 | D63: 30/06/2013 | E63: 88.00
A64: New Duct - footway; per metre | B64: 4 | C64: 01/07/2013 | D64: 30/09/2017 | E64: 45.00
A65: New Duct - footway; per metre | B65: 4 | C65: 01/10/2017 | D65: 30/06/2018 | E65: 66.77
A66: New Duct - footway; per metre | B66: 4 | C66: 01/07/2018 | D66: 06/12/2018 | E66: 69.57
A67: New Duct - footway; per metre | B67: 4 | C67: 07/12/2018 | E67: 73.19
A68: New Duct - carriageway; per metre | B68: 4 | C68: 20/12/2011 | D68: 30/06/2013 | E68: 154.00
A69: New Duct - carriageway; per metre | B69: 4 | C69: 01/07/2013 | D69: 30/09/2017 | E69: 89.00
A70: New Duct - carriageway; per metre | B70: 4 | C70: 01/10/2017 | D70: 30/06/2018 | E70: 123.26
A71: New Duct - carriageway; per metre | B71: 4 | C71: 01/07/2018 | D71: 06/12/2018 | E71: 127.67
A72: New Duct - carriageway; per metre | B72: 4 | C72: 07/12/2018 | E72: 131.14
A73: Cable recovery (light) - per 100m | B73: 5, 6 | C73: 20/12/2011 | D73: 30/06/2018 | E73: 92.00
A74: Cable recovery (light) - per 100m | B74: 5, 6 | C74: 01/07/2018 | D74: 31/03/2019 | E74: 95.15
A75: Cable recovery (light) - per 100m | B75: 5, 6 | C75: 01/04/2019 | E75: 94.42
A76: Cable recovery (heavy) - per 100m | B76: 5, 6 | C76: 20/12/2011 | D76: 30/09/2017 | E76: 320.00
A77: Cable recovery (heavy) - per 100m | B77: 5, 6 | C77: 01/10/2017 | D77: 30/06/2018 | E77: 220.41
A78: Cable recovery (heavy) - per 100m | B78: 5, 6 | C78: 01/07/2018 | D78: 31/03/2019 | E78: 227.99
A79: Cable recovery (heavy) - per 100m | B79: 5, 6 | C79: 01/04/2019 | E79: 226.24
A80: Cable recovery (large) - per 100m | B80: 5, 6 | C80: 20/12/2011 | D80: 30/09/2017 | E80: 466.00
A81: Cable recovery (large) - per 100m | B81: 5, 6 | C81: 01/10/2017 | D81: 30/06/2018 | E81: 439.16
A82: Cable recovery (large) - per 100m | B82: 5, 6 | C82: 01/07/2018 | D82: 31/03/2019 | E82: 454.25
A83: Cable recovery (large) - per 100m | B83: 5, 6 | C83: 01/04/2019 | E83: 450.75
A86: Underground works (3)
A88: Feature | B88: Note | C88: Operative date | D88: Until | E88: Charge £ Exc VAT
A89: Blockage clearance (initial) - per blockage | B89: 7 | C89: 20/12/2011 | D89: 30/09/2017 | E89: 358.00
A90: Blockage clearance (initial) - per blockage | B90: 7 | C90: 01/10/2017 | D90: 30/06/2018 | E90: 536.52
A91: Blockage clearance (initial) - per blockage | B91: 7 | C91: 01/07/2018 | D91: 31/03/2019 | E91: 585.79
A92: Blockage clearance (initial) - per blockage | B92: 7 | C92: 01/04/2019 | E92: 577.6
A93: Blockage clearance (subsequent) - per blockage | B93: 7 | C93: 20/12/2011 | D93: 30/09/2017 | E93: 306.00
A94: Blockage clearance (subsequent) - per blockage | B94: 7 | C94: 01/10/2017 | D94: 30/06/2018 | E94: 450.38
A95: Blockage clearance (subsequent) - per blockage | B95: 7 | C95: 01/07/2018 | D95: 31/03/2019 | E95: 496.86
A96: Blockage clearance (subsequent) - per blockage | B96: 7 | C96: 01/04/2019 | E96: 493.19
A97: Removal of locked lids - visit | B97: 8 | C97: 20/12/2011 | D97: 31/03/2015 | E97: 85.00
A98: Removal of locked lids - visit | B98: 8 | C98: 01/04/2015 | D98: 31/03/2016 | E98: 52.70
A99: Removal of locked lids - visit | B99: 8 | C99: 01/04/2016 | D99: 30/04/2018 | E99: 52.80
A100: Removal of locked lids - visit | B100: 8 | C100: 01/05/2018 | D100: 31/03/2019 | E100: 45.91
A101: Removal of locked lids - visit | B101: 8 | C101: 01/04/2019 | E101: 42.91
A102: Removal of locked lids - per hour | B102: 8 | C102: 20/12/2011 | D102: 31/03/2015 | E102: 55.00
A103: Removal of locked lids - per hour | B103: 8 | C103: 01/04/2015 | D103: 31/03/2016 | E103: 52.70
A104: Removal of locked lids - per hour | B104: 8 | C104: 01/04/2016 | D104: 30/04/2018 | E104: 52.80
A105: Removal of locked lids - per hour | B105: 8 | C105: 01/05/2018 | D105: 31/03/2019 | E105: 45.91
A106: Removal of locked lids - per hour | B106: 8 | C106: 01/04/2019 | E106: 42.89
A107: Issue of Security Key 1A - per key | C107: 19/07/2017 | E107: 15.00
A110: Overhead works (1)
A112: Feature | B112: Note | C112: Operative date | D112: Until | E112: Charge £ Exc VAT
A113: New Pole | B113: 9 | C113: 20/12/2011 | D113: 30/09/2017 | E113: 550.00
A114: New Pole | B114: 9 | C114: 01/10/2017 | D114: 30/06/2018 | E114: 434.38
A115: New Pole | B115: 9 | C115: 01/07/2018 | D115: 06/12/2018 | E115: 451.17
A116: New Pole | B116: 9 | C116: 07/12/2018 | E116: 453.32
A117: Replacement Carrier Pole (expedite) | B117: 10, 11 | C117: 20/12/2011 | D117: 30/09/2017 | E117: 900.00
A118: Replacement Carrier Pole (expedite) | B118: 10, 11 | C118: 01/10/2017 | D118: 30/06/2018 | E118: 941.05
A119: Replacement Carrier Pole (expedite) | B119: 10, 11 | C119: 01/07/2018 | D119: 31/03/2019 | E119: 975.43
A120: Replacement Carrier Pole (expedite) | B120: 10, 11 | C120: 01/04/2019 | E120: 944.92
A121: Replacement DP Pole (expedite) | B121: 10, 11 | C121: 20/12/2011 | D121: 30/09/2017 | E121: 1,110.00
A122: Replacement DP Pole (expedite) | B122: 10, 11 | C122: 01/10/2017 | D122: 30/06/2018 | E122: 1,175.81
A123: Replacement DP Pole (expedite) | B123: 10, 11 | C123: 01/07/2018 | D123: 31/03/2019 | E123: 1,218.80
A124: Replacement DP Pole (expedite) | B124: 10, 11 | C124: 01/04/2019 | E124: 1189.85
A125: Replacement Carrier Pole | B125: 10 | C125: 20/12/2011 | D125: 30/09/2017 | E125: 764.00
A126: Replacement Carrier Pole | B126: 10 | C126: 01/10/2017 | D126: 30/06/2018 | E126: 747.01
A127: Replacement Carrier Pole | B127: 10 | C127: 01/07/2018 | D127: 31/03/2019 | E127: 773.91
A128: Replacement Carrier Pole | B128: 10 | C128: 01/04/2019 | E128: 756.29
A129: Replacement DP Pole | B129: 10 | C129: 20/12/2011 | D129: 30/09/2017 | E129: 974.00
A130: Replacement DP Pole | B130: 10 | C130: 01/10/2017 | D130: 30/06/2018 | E130: 981.77
A131: Replacement DP Pole | B131: 10 | C131: 01/07/2018 | D131: 31/03/2019 | E131: 1,017.28
A132: Replacement DP Pole | B132: 10 | C132: 01/04/2019 | E132: 1,001.23
A133: Pole recovery (removal) per pole | C133: 20/12/2011 | D133: 30/09/2017 | E133: 163.00
A134: Pole recovery (removal) per pole | C134: 01/10/2017 | D134: 30/06/2018 | E134: 129.35
A135: Pole recovery (removal) per pole | C135: 01/07/2018 | D135: 31/03/2019 | E135: 134.11
A136: Pole recovery (removal) per pole | C136: 01/04/2019 | E136: 130.74
A139: Overhead works (2)
A141: Feature | B141: Operative date | C141: Until | D141: Charge £ Exc VAT
A142: Renew and/or provide a Pole Stay | B142: 20/12/2011 | C142: 30/09/2017 | D142: 158.00
A143: Renew and/or provide a Pole Stay | B143: 01/10/2017 | C143: 30/06/2018 | D143: 113.52
A144: Renew and/or provide a Pole Stay | B144: 01/07/2018 | C144: 31/03/2019 | D144: 117.98
A145: Renew and/or provide a Pole Stay | B145: 01/04/2019 | D145: 109.32
A146: Renew, provide and/or re position Pole steps on Pole - per pole | B146: 20/12/2011 | C146: 30/09/2017 | D146: 54.00
A147: Renew, provide and/or re position Pole steps on Pole - per pole | B147: 01/10/2017 | C147: 30/06/2018 | D147: 38.29
A148: Renew, provide and/or re position Pole steps on Pole - per pole | B148: 01/07/2018 | C148: 31/03/2019 | D148: 39.73
A149: Renew, provide and/or re position Pole steps on Pole - per pole | B149: 01/04/2019 | D149: 38.10
A150: Provide pole top ring-head | B150: 20/12/2011 | D150: 54.00
A151: Block and tail renewal (rationalise copper blocks) | B151: 01/04/2019 | D151: 446.69
A154: Overhead works (3)
A156: Feature | B156: Note | C156: Operative date | D156: Until | E156: Charge £ Exc VAT
A157: Erect Fibre Drop Cable / Tube | C157: 01/04/2019 | E157: 92.57
A158: Customer changeover, per pole visit | B158: 12 | C158: 20/12/2011 | D158: 31/03/2015 | E158: 85.00
A159: Customer changeover, per pole visit | B159: 12 | C159: 01/04/2015 | D159: 31/03/2016 | E159: 52.70
A160: Customer changeover, per pole visit | B160: 12 | C160: 01/04/2016 | D160: 30/04/2018 | E160: 52.80
A161: Customer changeover, per pole visit | B161: 12 | C161: 01/05/2018 | D161: 31/03/2019 | E161: 45.91
A162: Customer changeover, per pole visit | B162: 12 | C162: 01/04/2019 | E162: 42.91
A163: Customer changeover - hourly rate | B163: 12 | C163: 20/12/2011 | D163: 31/03/2015 | E163: 55.00
A164: Customer changeover - hourly rate | B164: 12 | C164: 20/12/2011 | D164: 31/03/2016 | E164: 52.70
A165: Customer changeover - hourly rate | B165: 12 | C165: 01/04/2016 | D165: 30/04/2018 | E165: 52.80
A166: Customer changeover - hourly rate | B166: 12 | C166: 01/05/2018 | D166: 31/03/2019 | E166: 45.91
A167: Customer changeover - hourly rate | B167: 12 | C167: 01/04/2019 | E167: 42.89
A168: Re-tension, Refix and Renewal of aerial Cable | C168: 20/12/2011 | D168: 30/09/2017 | E168: 270.00
A169: Re-tension, Refix and Renewal of aerial Cable | C169: 01/10/2017 | D169: 30/06/2018 | E169: 150.03
A170: Re-tension, Refix and Renewal of aerial Cable | C170: 01/07/2018 | D170: 31/05/2019 | E170: 155.19
A171: Re-tension, Refix and Renewal of aerial Cable | C171: 01/06/2019 | E171: 162.14
A172: Re-tension, Refix and Renewal of drop wire | C172: 20/12/2011 | D172: 30/09/2017 | E172: 74.00
A173: Re-tension, Refix and Renewal of drop wire | C173: 01/10/2017 | D173: 30/06/2018 | E173: 54.49
A174: Re-tension, Refix and Renewal of drop wire | C174: 01/07/2018 | D174: 31/03/2019 | E174: 56.45
A175: Re-tension, Refix and Renewal of drop wire | C175: 01/04/2019 | E175: 56.09
A178: Ancillary Items (1)
A180: Feature | B180: Note | C180: Operative date | D180: Until | E180: Charge £ Exc VAT
A181: Lead assessor accreditation - surveyor | B181: 13 | C181: 20/12/2011 | D181: 30/09/2017 | E181: 615.00
A182: Lead assessor accreditation - surveyor | B182: 13 | C182: 01/10/2017 | D182: 30/06/2018 | E182: 612.26
A183: Lead assessor accreditation - surveyor | B183: 13 | C183: 01/07/2018 | D183: 31/05/2019 | E183: 615.61
A184: Lead assessor accreditation - surveyor | B184: 13 | C184: 01/06/2019 | E184: 630.49
A185: Lead assessor accreditation - overhead build | B185: 13 | C185: 20/12/2011 | D185: 30/09/2017 | E185: 615.00
A186: Lead assessor accreditation - overhead build | B186: 13 | C186: 01/10/2017 | D186: 30/06/2018 | E186: 612.26
A187: Lead assessor accreditation - overhead build | B187: 13 | C187: 01/07/2018 | D187: 31/05/2019 | E187: 615.61
A188: Lead assessor accreditation - overhead build | B188: 13 | C188: 01/06/2019 | E188: 630.49
A189: Lead assessor accreditation - underground build | B189: 13 | C189: 20/12/2011 | D189: 30/09/2017 | E189: 615.00
A190: Lead assessor accreditation - underground build | B190: 13 | C190: 01/10/2017 | D190: 30/06/2018 | E190: 612.26
A191: Lead assessor accreditation - underground build | B191: 13 | C191: 01/07/2018 | D191: 31/05/2019 | E191: 615.61
A192: Lead assessor accreditation - underground build | B192: 13 | C192: 01/06/2019 | E192: 630.49
A193: Licensing of CP site as being suitable to deliver PIA non- civils accreditations (cost per site) | B193: 13 | C193: 20/12/2011 | D193: 30/09/2017 | E193: 263.00
A194: Licensing of CP site as being suitable to deliver PIA non- civils accreditations (cost per site) | B194: 13 | C194: 01/10/2017 | D194: 30/06/2018 | E194: 242.38
A195: Licensing of CP site as being suitable to deliver PIA non- civils accreditations (cost per site) | B195: 13 | C195: 01/07/2018 | D195: 31/05/2019 | E195: 244.05
A196: Licensing of CP site as being suitable to deliver PIA non- civils accreditations (cost per site) | B196: 13 | C196: 01/06/2019 | E196: 261.49
A197: Diversionary Works; per hour | B197: 14 | C197: 20/12/2011 | D197: 30/09/2017 | E197: 75.00
A198: Diversionary Works; per hour | B198: 14 | C198: 01/10/2017 | D198: 30/06/2018 | E198: 67.33
A199: Diversionary Works; per hour | B199: 14 | C199: 01/07/2018 | D199: 31/05/2019 | E199: 67.79
A200: Diversionary Works; per hour | B200: 14 | C200: 01/06/2019 | E200: 72.63
A201: Restoration; per hour | B201: 15 | C201: 20/12/2011 | D201: 30/09/2017 | E201: 75.00
A202: Restoration; per hour | B202: 15 | C202: 01/10/2017 | D202: 30/06/2018 | E202: 67.33
A203: Restoration; per hour | B203: 15 | C203: 01/07/2018 | D203: 31/05/2019 | E203: 72.63
A204: Restoration; per hour | B204: 15 | C204: 01/06/2019 | E204: 72.63
A207: Ancillary Items (2)
A209: Feature | B209: Note | C209: Operative date | D209: Until | E209: Charge £ Exc VAT
A210: Co-op Survey; per survey | B210: 16 | C210: 20/12/2011 | D210: 31/03/2015 | E210: 350.00
A211: Co-op Survey; per survey | B211: 16 | C211: 01/04/2015 | D211: 30/09/2017 | E211: 260.30
A212: Co-op Survey; per survey | B212: 16 | C212: 01/10/2017 | D212: 30/04/2018 | E212: 245.14
A213: Co-op Survey; per survey | B213: 16 | C213: 01/05/2018 | E213: 244.52
A214: Openreach Assist - per visit | B214: 17 | C214: 20/12/2011 | D214: 31/03/2015 | E214: 85.00
A215: Openreach Assist - per visit | B215: 17 | C215: 01/04/2015 | D215: 31/03/2016 | E215: 52.70
A216: Openreach Assist - per visit | B216: 17 | C216: 01/04/2016 | D216: 30/04/2018 | E216: 52.80
A217: Openreach Assist - per visit | B217: 17 | C217: 01/05/2018 | D217: 31/03/2019 | E217: 45.91
A218: Openreach Assist - per visit | B218: 17 | C218: 01/04/2019 | E218: 42.91
A219: Openreach Assist - per hour | B219: 17 | C219: 20/12/2011 | D219: 31/03/2015 | E219: 55.00
A220: Openreach Assist - per hour | B220: 17 | C220: 01/04/2015 | D220: 31/03/2016 | E220: 52.70
A221: Openreach Assist - per hour | B221: 17 | C221: 01/04/2016 | D221: 30/04/2018 | E221: 52.80
A222: Openreach Assist - per hour | B222: 17 | C222: 01/05/2018 | D222: 31/03/2019 | E222: 45.91
A223: Openreach Assist - per hour | B223: 17 | C223: 01/04/2019 | E223: 42.89
A224: Work Point Set-Up (Overhead and Cabling); per day | C224: 01/04/2019 | E224: 16.25
A225: Network Adjustment Verification (Complex e.g. including rodding) | C225: 01/04/2019 | E225: 532.10
A226: Network Adjustment Verification (Simple) | C226: 01/04/2019 | E226: 118.24
A229: Ancillary Items (3)
A231: Feature | B231: Note | C231: Operative date | D231: Until | E231: Charge £ Exc VAT
... 26 more rows

Sheet PIA - Ancillary rentals
A1: Source
A2: https://www.openreach.co.uk/orpg/home/products/pricing/loadProductPriceDetails.do?data=5U%2BT4J34ZzADdeE3wLse8prmJTmzH7GBw64NLcFpYMdZ6rNZujnCs99NbIKJZPD9hXYmiijxH6wrCQm97GZMyQ%3D%3D
A3: Price list
A6: Product line: | B6: Physical Infrastructure Pricing
A7: First level product: | B7: Physical Infrastructure Products
A8: Second level product: | B8: Ancillary Rentals
A9: Version | B9: N/A
A12: Ancillary Rentals
A14: Separate charges apply for Facility and Customer Apparatus hosting in manholes and joint boxes. The Licence Fee (per annum) is calculated by adding together the relevant Duct and Pole Products with the Ancillary Fees, e.g. Customer Apparatus In-line Splice hosting and distribution joints.
A16: Feature | B16: Note | C16: Operative date | D16: Until | E16: Minimum Licence Period (years) | F16: Charge per annum £ £ Exc VAT | G16: Charge per annum for BDUK related bids £ Exc VAT
A17: Customer Apparatus In-line Splice hosting and distribution joints (per manhole splice) | B17: 1 | C17: 02/08/2012 | D17: 15/09/2013 | E17: 5 | F17: 76.40 | G17: 40.06
A18: Customer Apparatus In-line Splice hosting and distribution joints (per manhole splice) | B18: 1, 4 | C18: 16/09/2013 | D18: 30/04/2018 | E18: 5 | F18: 40.06 | G18: n/a
A19: Customer Apparatus In-line Splice hosting and distribution joints (per manhole splice) | B19: 1, 4, 5 | C19: 01/05/2018 | D19: 31/03/2019 | E19: 5 | F19: 29.22 | G19: n/a
A20: Customer Apparatus In-line Splice hosting and distribution joints (per manhole splice) | B20: 1, 4, 5, 14 | C20: 01/04/2019 | E20: 5 | F20: 29.92 | G20: n/a
A21: Customer Apparatus In-line Splice hosting and distribution joints (per joint box splice) | B21: 1 | C21: 02/08/2012 | D21: 15/09/2013 | E21: 5 | F21: 53.57 | G21: 31.42
A22: Customer Apparatus In-line Splice hosting and distribution joints (per joint box splice) | B22: 1, 4 | C22: 16/09/2013 | D22: 30/04/2018 | E22: 5 | F22: 31.42 | G22: n/a
A23: Customer Apparatus In-line Splice hosting and distribution joints (per joint box splice) | B23: 1, 4, 6 | C23: 01/05/2018 | D23: 31/03/2019 | E23: 5 | F23: 18.11 | G23: n/a
A24: Customer Apparatus In-line Splice hosting and distribution joints (per joint box splice) | B24: 1, 4, 6, 14 | C24: 01/04/2019 | E24: 5 | F24: 18.54 | G24: n/a
A25: Customer Apparatus Cable Coil Hosting - small (per manhole) | B25: 1, 2 | C25: 02/08/2012 | D25: 15/09/2013 | E25: 5 | F25: 44.07 | G25: 25.90
A26: Customer Apparatus Cable Coil Hosting - small (per manhole) | B26: 1, 2, 4 | C26: 16/09/2013 | D26: 30/04/2018 | E26: 5 | F26: 25.90 | G26: n/a
A27: Customer Apparatus Cable Coil Hosting - small (per manhole) | B27: 1, 2, 4, 7 | C27: 01/05/2018 | D27: 31/03/2019 | E27: 5 | F27: 14.61 | G27: n/a
A28: Customer Apparatus Cable Coil Hosting - small (per manhole) | B28: 1, 2, 4, 7 | C28: 01/04/2019 | E28: 5 | F28: 14.96 | G28: n/a
A29: Customer Apparatus Cable Coil Hosting - medium (per manhole) | B29: 1, 2 | C29: 02/08/2012 | D29: 15/09/2013 | E29: 5 | F29: 76.40 | G29: 40.06
A30: Customer Apparatus Cable Coil Hosting - medium (per manhole) | B30: 1, 2, 4 | C30: 16/09/2013 | D30: 30/04/2018 | E30: 5 | F30: 40.06 | G30: n/a
A31: Customer Apparatus Cable Coil Hosting - medium (per manhole) | B31: 1, 2, 4, 5 | C31: 01/05/2018 | D31: 31/03/2019 | E31: 5 | F31: 29.22 | G31: n/a
A32: Customer Apparatus Cable Coil Hosting - medium (per manhole) | B32: 1, 2, 4, 5 | C32: 01/04/2019 | E32: 5 | F32: 29.92 | G32: n/a
A33: Customer Apparatus Cable Coil Hosting - large (per manhole) | B33: 1, 2 | C33: 02/08/2012 | D33: 15/09/2013 | E33: 5 | F33: 108.74 | G33: 54.23
A34: Customer Apparatus Cable Coil Hosting - large (per manhole) | B34: 1, 2, 4 | C34: 16/09/2013 | D34: 30/04/2018 | E34: 5 | F34: 54.23 | G34: n/a
A35: Customer Apparatus Cable Coil Hosting - large (per manhole) | B35: 1, 2, 4, 8 | C35: 01/05/2018 | D35: 31/03/2019 | E35: 5 | F35: 43.83 | G35: n/a
A36: Customer Apparatus Cable Coil Hosting - large (per manhole) | B36: 1, 2, 4, 8 | C36: 01/04/2019 | E36: 5 | F36: 44.88 | G36: n/a
A37: Customer Apparatus Cable Coil Hosting - small (per joint box) | B37: 1, 2 | C37: 02/08/2012 | D37: 15/09/2013 | E37: 5 | F37: 29.54 | G37: 18.46
A38: Customer Apparatus Cable Coil Hosting - small (per joint box) | B38: 1, 2, 4 | C38: 16/09/2013 | D38: 30/04/2018 | E38: 5 | F38: 18.46 | G38: n/a
A39: Customer Apparatus Cable Coil Hosting - small (per joint box) | B39: 1, 2, 4, 9 | C39: 01/05/2018 | D39: 31/03/2019 | E39: 5 | F39: 9.05 | G39: n/a
A40: Customer Apparatus Cable Coil Hosting - small (per joint box) | B40: 1, 2, 4, 9 | C40: 01/04/2019 | E40: 5 | F40: 9.26 | G40: n/a
A41: Customer Apparatus Cable Coil Hosting - medium (per joint box) | B41: 1, 2 | C41: 02/08/2012 | D41: 15/09/2013 | E41: 5 | F41: 53.57 | G41: 31.42
A42: Customer Apparatus Cable Coil Hosting - medium (per joint box) | B42: 1, 2, 4 | C42: 16/09/2013 | D42: 30/04/2018 | E42: 5 | F42: 31.42 | G42: n/a
A43: Customer Apparatus Cable Coil Hosting - medium (per joint box) | B43: 1, 2, 4, 6 | C43: 01/05/2018 | D43: 31/03/2019 | E43: 5 | F43: 18.11 | G43: n/a
A44: Customer Apparatus Cable Coil Hosting - medium (per joint box) | B44: 1, 2, 4, 6 | C44: 01/04/2019 | E44: 5 | F44: 18.54 | G44: n/a
A45: Customer Apparatus Cable Coil Hosting - large (per joint box) | B45: 1, 2 | C45: 02/08/2012 | D45: 15/09/2013 | E45: 5 | F45: 77.60 | G45: 44.38
A46: Customer Apparatus Cable Coil Hosting - large (per joint box) | B46: 1, 2, 4 | C46: 16/09/2013 | D46: 30/04/2018 | E46: 5 | F46: 44.38 | G46: n/a
A47: Customer Apparatus Cable Coil Hosting - large (per joint box) | B47: 1, 2, 4, 10 | C47: 01/05/2018 | D47: 31/03/2019 | E47: 5 | F47: 27.16 | G47: n/a
A48: Customer Apparatus Cable Coil Hosting - large (per joint box) | B48: 1, 2, 4, 10 | C48: 01/04/2019 | E48: 5 | F48: 27.81 | G48: n/a
A49: Facility hosting (per manhole entry) | B49: 1, 3 | C49: 02/08/2012 | D49: 15/09/2013 | E49: 5 | F49: 14.98 | G49: 11.18
A50: Facility hosting (per manhole entry) | B50: 1, 3, 4 | C50: 16/09/2013 | D50: 30/04/2018 | E50: 5 | F50: 11.18 | G50: n/a
A51: Facility hosting (per manhole entry) | B51: 1, 3, 4, 9, 11 | C51: 01/05/2018 | D51: 31/03/2019 | E51: 5 | F51: 8.34 | G51: n/a
A52: Facility hosting (per manhole entry) | B52: 1, 3, 4, 9, 11 | C52: 01/04/2019 | E52: 5 | F52: 8.54 | G52: n/a
A53: Facility hosting (per joint box entry) | B53: 1, 3 | C53: 02/08/2012 | D53: 15/09/2013 | E53: 5 | F53: 7.03 | G53: 5.11
A54: Facility hosting (per joint box entry) | B54: 1, 3, 4 | C54: 16/09/2013 | D54: 30/04/2018 | E54: 5 | F54: 5.11 | G54: n/a
A55: Facility hosting (per joint box entry) | B55: 1, 3, 4, 10, 12 | C55: 01/05/2018 | D55: 31/03/2019 | E55: 5 | F55: 2.01 | G55: n/a
A56: Facility hosting (per joint box entry) | B56: 1, 3, 4, 10, 12 | C56: 01/04/2019 | E56: 5 | F56: 2.05 | G56: n/a
A58: Notes:
A59: 1. Not used. 2. For cable coils housed in a junction box or manhole, a small cable is defined as 0m-2m, medium cable 2m-7m, large cable >7m. 3. A separate charge will apply for each sub-duct entering or exiting from the junction box or manhole. If a single sub-duct passes straight through the junction box or manhole - two charges apply (one for entry and one for exit). 4. From 16/9 /2013, the distinction between BDUK and Non BDUK regional prices was removed and a single price now applies. 5. Openreach amends its process for billing for products where the annual charge is not divisible by twelve. Openreach will flex the monthly charges by a penny up or down, so that over the course of the year the total price charged is no more than the Ofcom charge ceiling. The flexing of the monthly charges is shown below. For the period 1 May 2018 to 31 March 2019:May to August &pound;2.65September to March &pound;2.66 For the period 1 April 2019 to 31 March 2020:April to July &pound;2.50August to March &pound;2.49 6. Openreach amends its process for billing for products where the annual charge is not divisible by twelve.. Openreach will flex the monthly charges by a penny up or down, so that over the course of the year the total price charged is no more than the Ofcom charge ceiling. The flexing of the monthly charges is shown below. For the period 1 May 2018 to 31 March 2019:May to August &pound;1.64September to March &pound;1.65 For the period 1 April 2019 to 31 March 2020:April to September &pound;1.55October to March &pound;1.54 7. Openreach amends its process for billing for products where the annual charge is not divisible by twelve.. Openreach will flex the monthly charges by a penny up or down, so that over the course of the year the total price charged is no more than the Ofcom charge ceiling. The flexing of the monthly charges is shown below. For the period 1 May 2018 to 31 March 2019:May to June &pound;1.32July to March &pound;1.33 For the period 1 April 2019 to 31 March 2020:April to November &pound;1.25December to March &pound;1.24 8. Openreach amends its process for billing for products where the annual charge is not divisible by twelve.. Openreach will flex the monthly charges by a penny up or down, so that over the course of the year the total price charged is no more than the Ofcom charge ceiling. The flexing of the monthly charges is shown below. For the period 1 May 2018 to 31 March 2019:May to October &pound;3.98November to March &pound;3.99 9. Openreach amends its process for billing for products where the annual charge is not divisible by twelve.. Openreach will flex the monthly charges by a penny up or down, so that over the course of the year the total price charged is no more than the Ofcom charge ceiling. The flexing of the monthly charges is shown below. For the period 1 May 2018 to 31 March 2019:May to December &pound;0.82January to March &pound;0.83 For the period 1 April 2019 to 31 March 2020:April to May &pound;0.78June to March &pound;0.77 10.Openreach amends its process for billing for products where the annual charge is not divisible by twelve.. Openreach will flex the monthly charges by a penny up or down, so that over the course of the year the total price charged is no more than the Ofcom charge ceiling. The flexing of the monthly charges is shown below. For the period 1 May 2018 to 31 March 2019:May &pound;2.46June to March &pound;2.47 For the period 1 April 2019 to 31 March 2020:April to December &pound;2.32January to March &pound;2.31 11.Openreach amends its process for billing for products where the annual charge is not divisible by twelve.. Openreach will flex the monthly charges by a penny up or down, so that over the course of the year the total price charged is no more than the Ofcom charge ceiling. The flexing of the monthly charges is shown below. For the period 1 May 2018 to 31 March 2019:May to June &pound;0.75July to March &pound;0.76 For the period 1 April 2019 to 31 March 2020:April to May &pound;0.72June to March &pound;0.71 12.Openreach amends its process for billing for products where the annual charge is not divisible by twelve.. Openreach will flex the monthly charges by a penny up or down, so that over the course of the year the total price charged is no more than the Ofcom charge ceiling. The flexing of the monthly charges is shown below. For the period 1 May 2018 to 31 March 2019:May to December &pound;0.18January to March &pound;0.19 For the period 1 April 2019 to 31 March 2020:April &pound;0.18May to March &pound;0.17 13. For 2018/19 charge per annum applies for First Relevant PIA Year from 1 May 2018 to 31 March 2019 14. Includes where using Tube Distribution Closures /Blow Fibre Manifolds in a chamber
D61: Openreach Limited
D62: Registered Office:
A63: Date: 04 March 2019 | D63: Kelvin House, 123 Judd Street,
D64: London WCIH 9NP
D65: Registered in England and Wales no. 10690039
D66: www.openreach.co.uk

Sheet EAD costs
A1: Source:
A2: 017/18 RFS for services SD148 and SD149; and Ofcom calculations on 2017/18 AFI 4 and 2017/18 AFI 12 (A12_SERVICE MARKET and A12_Revenue Analysis) for service SD163.
B4: Services
B5: SD148 | C5: SD149 | D5: SD163 low | E5: SD163 high
B6: EAD LA 100Mbit s Rentals Rest of UK Internal | C6: EAD LA 1Gbit s Rentals Rest of UK Internal | D6: EAD 10G Rentals Rest of UK Internal | E6: EAD 10G Rentals Rest of UK Internal
A7: Annual depreciation of unit FAC for cost component CO487 (Ethernet Electronics Capital) | B7: 305.982 | C7: 284.622 | D7: 795.4464 | E7: 1193.1696

Sheet EAD prices
A1: Source:
A2: https://www.openreach.co.uk/orpg/home/products/pricing/loadProductPriceDetails.do?data=0d0zetWgShsjqKWjcN2Y5WJA8BGGqsBLxL7IgSM4fRpZ6rNZujnCs99NbIKJZPD9hXYmiijxH6wr%0ACQm97GZMyQ%3D%3D
A3: Price list
A6: Product line: | B6: Ethernet services
A7: First level product: | B7: Connectivity Services
A8: Second level product: | B8: Ethernet Access Direct (EAD) including EAD Enable
A9: Version | B9: N/A
A12: Ethernet Access Direct (EAD) including EAD Enable
A14: For terms and conditions applicable to these charges payable to BT, please see the Conditions section of the Connectivity Services Contract.
A17: EAD circuits
A19: Feature | B19: Note | C19: Operative date | D19: Until | E19: Connection (Note 10) £ Exc VAT | F19: Annual Rental (Note 1,2 & 12) £ Exc VAT
A20: (Prices are per circuit - Note 2)
A21: EAD 10 | C21: 14/07/2009 | D21: 18/01/2010 | E21: 1,950.00 | F21: 4,400.00
A22: EAD 10 | C22: 19/01/2010 | D22: 08/04/2010 | E22: 1,560.00 | F22: 3,352.64
A23: EAD 10 | C23: 09/04/2010 | D23: 29/09/2010 | E23: 1,404.00 | F23: 3,352.64
A24: EAD 10 | C24: 30/09/2010 | D24: 30/04/2013 | E24: 1,560.00 | F24: 3,352.64
A25: EAD 10 | C25: 01/05/2013 | D25: 31/03/2014 | E25: 1,560.00 | F25: 3,000.00
A26: EAD 10 | C26: 01/04/2014 | D26: 31/05/2014 | E26: 1,560.00 | F26: 2,550.00
A27: EAD 10 | B27: Note 23 | C27: 01/06/2014 | D27: 30/04/2016 | E27: 2,108.00 | F27: 2,550.00
A28: EAD 10 | B28: Note 23 | C28: 01/05/2016 | D28: 30/06/2017 | E28: 1,950.00 | F28: 1,800.00
A29: EAD 10 | B29: Note 23 | C29: 01/07/2017 | D29: 31/03/2018 | E29: 1,940.00 | F29: 1,800.00
A30: EAD 10 | B30: Note 23 | C30: 01/04/2018 | D30: 30/09/2018 | E30: 1,890.00 | F30: 1,698.00
A31: EAD 10 | B31: Note 23 | C31: 01/10/2018 | E31: 1,865.00 | F31: 1,698.00
A32: EAD 100 | C32: 14/07/2009 | D32: 18/01/2010 | E32: 1,950.00 | F32: 4,400.00
A33: EAD 100 | C33: 19/01/2010 | D33: 08/04/2010 | E33: 1,950.00 | F33: 4,044.84
A34: EAD 100 | C34: 09/04/2010 | D34: 29/09/2010 | E34: 1,755.00 | F34: 4,044.84
A35: EAD 100 | C35: 30/09/2010 | D35: 30/09/2011 | E35: 1,950.00 | F35: 4,044.84
A36: EAD 100 | C36: 01/10/2011 | D36: 30/04/2013 | E36: 1,950.00 | F36: 3,628.80
A37: EAD 100 | C37: 01/05/2013 | D37: 31/03/2014 | E37: 1,950.00 | F37: 2,400.00
A38: EAD 100 | C38: 01/04/2014 | D38: 31/05/2014 | E38: 1,402.00 | F38: 2,400.00
A39: EAD 100 | B39: Note 23 | C39: 01/06/2014 | D39: 31/03/2016 | E39: 1,950.00 | F39: 2,400.00
A40: EAD 100 | B40: Note 23 | C40: 01/04/2016 | D40: 30/04/2016 | E40: 1,950.00 | F40: 2,245.00
A41: EAD 100 | B41: Note 23 | C41: 01/05/2016 | D41: 30/09/2016 | E41: 1,950.00 | F41: 1,800.00
A42: EAD 100 | B42: Note 23 | C42: 01/10/2016 | D42: 30/06/2017 | E42: 1,935.00 | F42: 1,800.00
A43: EAD 100 | B43: Note 23 | C43: 01/07/2017 | D43: 31/03/2018 | E43: 1,925.00 | F43: 1,800.00
A44: EAD 100 | B44: Note 23 | C44: 01/04/2018 | D44: 30/09/2018 | E44: 1,875.00 | F44: 1,698.00
A45: EAD 100 | B45: Note 23 | C45: 01/10/2018 | E45: 1,850.00 | F45: 1,698.00
A46: EAD 1000 | C46: 22/04/2009 | D46: 30/09/2012 | E46: 3,995.00 | F46: 9,500.00
A47: EAD 1000 | C47: 01/10/2012 | D47: 30/04/2013 | E47: 3,995.00 | F47: 7,779.00
A48: EAD 1000 | C48: 01/05/2013 | D48: 31/03/2014 | E48: 3,900.00 | F48: 6,741.00
A49: EAD 1000 | C49: 01/04/2014 | D49: 31/05/2014 | E49: 3,352.00 | F49: 5,664.00
A50: EAD 1000 | B50: Note 23 | C50: 01/06/2014 | D50: 31/03/2015 | E50: 3,900.00 | F50: 5,664.00
A51: EAD 1000 | B51: Note 23 | C51: 01/04/2015 | D51: 31/03/2016 | E51: 2,100.00 | F51: 4,200.00
A52: EAD 1000 | B52: Note 23 | C52: 01/04/2016 | D52: 30/04/2016 | E52: 2,100.00 | F52: 3,850.00
A53: EAD 1000 | B53: Note 23 | C53: 01/05/2016 | D53: 30/09/2016 | E53: 2,100.00 | F53: 3,200.00
A54: EAD 1000 | B54: Note 23 | C54: 01/10/2016 | D54: 30/06/2017 | E54: 2,100.00 | F54: 3,198.00
A55: EAD 1000 | B55: Note 23 | C55: 01/07/2017 | D55: 30/09/2017 | E55: 2,090.00 | F55: 3,198.00
A56: EAD 1000 | B56: Note 23 | C56: 01/10/2017 | D56: 31/03/2018 | E56: 2,090.00 | F56: 2,850.00
A57: EAD 1000 | B57: Note 23 | C57: 01/04/2018 | D57: 30/09/2018 | E57: 1,875.00 | F57: 2,460.00
A58: EAD 1000 | B58: Note 23 | C58: 01/10/2018 | E58: 1,850.00 | F58: 1,944.00
A59: EAD 1000 (60 month minimum period) | C59: 15/12/2010 | D59: 30/04/2013 | E59: 3,995.00 | F59: 6,300.00
A60: EAD 1000 (60 month minimum period) | C60: 01/05/2013 | D60: 31/03/2014 | E60: 3,900.00 | F60: 6,048.00
A61: EAD 1000 (60 month minimum period) | C61: 01/04/2014 | D61: 31/05/2014 | E61: 3,352.00 | F61: 5,625.00
A62: EAD 1000 (60 month minimum period) | B62: Note 23 | C62: 01/06/2014 | D62: 31/03/2015 | E62: 3,900.00 | F62: 5,625.00
A63: EAD 1000 (60 month minimum period) | B63: Note 23 | C63: 01/04/2015 | D63: 31/03/2016 | E63: 2,100.00 | F63: 4,152.00
A64: EAD 1000 (60 month minimum period) | B64: Note 23 | C64: 01/04/2016 | D64: 30/04/2016 | E64: 2,100.00 | F64: 3,850.00
A65: EAD 1000 (60 month minimum period) | B65: Note 23 | C65: 01/05/2016 | D65: 30/06/2017 | E65: 2,100.00 | F65: 3,150.00
A66: EAD 1000 (60 month minimum period) | B66: Note 23 | C66: 01/07/2017 | D66: 30/09/2017 | E66: 2,090.00 | F66: 3,150.00
A67: EAD 1000 (60 month minimum period) | B67: Note 23 | C67: 01/10/2017 | D67: 31/03/2018 | E67: 2,090.00 | F67: 2,808.00
A68: EAD 1000 (60 month minimum period) | B68: Note 23 | C68: 01/04/2018 | D68: 30/09/2018 | E68: 1,875.00 | F68: 2,412.00
A69: EAD 1000 (60 month minimum period) | B69: Note 23 | C69: 01/10/2018 | E69: 1,850.00 | F69: 1,890.00
A70: EAD 1000 (84 month minimum period) | C70: 08/07/2013 | D70: 31/03/2014 | E70: 4,495.00 | F70: 5,200.00
A71: EAD 1000 (84 month minimum period) | C71: 01/04/2014 | D71: 31/05/2014 | E71: 3,947.00 | F71: 5,200.00
A72: EAD 1000 (84 month minimum period) | B72: Note 23 | C72: 01/06/2014 | D72: 30/06/2017 | E72: 4,495.00 | F72: 5,200.00
A73: EAD 1000 (84 month minimum period) | B73: Note 23 | C73: 01/07/2017 | D73: 30/09/2017 | E73: 4,485.00 | F73: 5,200.00
A74: EAD 1000 (84 month minimum period) | B74: Note 23 | C74: 01/10/2017 | D74: 31/03/2018 | E74: 4,485.00 | F74: 2,850.00
A75: EAD 1000 (84 month minimum period) | B75: Note 23 | C75: 01/04/2018 | D75: 30/09/2018 | E75: 4,485.00 | F75: 2,460.00
A76: EAD 1000 (84 month minimum period) | B76: Note 23 | C76: 01/10/2018 | E76: 4,460.00 | F76: 1,944.00
A77: EAD 10 Extended Reach | C77: 19/11/2012 | D77: 31/05/2014 | E77: 1,950.00 | F77: 4,593.00
A78: EAD 10 Extended Reach | B78: Note 23 | C78: 01/06/2014 | D78: 30/04/2016 | E78: 2,498.00 | F78: 4,593.00
A79: EAD 10 Extended Reach | B79: Note 23 | C79: 01/05/2016 | D79: 30/06/2017 | E79: 2,440.00 | F79: 1,800.00
A80: EAD 10 Extended Reach | B80: Note 23 | C80: 01/07/2017 | D80: 31/03/2018 | E80: 2,430.00 | F80: 1,800.00
A81: EAD 10 Extended Reach | B81: Note 23 | C81: 01/04/2018 | D81: 30/09/2018 | E81: 1,990.00 | F81: 1,698.00
A82: EAD 10 Extended Reach | B82: Note 23 | C82: 01/10/2018 | E82: 1,965.00 | F82: 1,698.00
A83: EAD 100 Extended Reach | C83: 19/11/2012 | D83: 31/03/2014 | E83: 2,440.00 | F83: 4,971.00
A84: EAD 100 Extended Reach | C84: 01/04/2014 | D84: 31/05/2014 | E84: 1,892.00 | F84: 4,971.00
A85: EAD 100 Extended Reach | B85: Note 23 | C85: 01/06/2014 | D85: 30/04/2016 | E85: 2,440.00 | F85: 4,971.00
A86: EAD 100 Extended Reach | B86: Note 23 | C86: 01/05/2016 | D86: 30/09/2016 | E86: 2,440.00 | F86: 1,800.00
A87: EAD 100 Extended Reach | B87: Note 23 | C87: 01/10/2016 | D87: 30/06/2017 | E87: 2,425.00 | F87: 1,800.00
A88: EAD 100 Extended Reach | B88: Note 23 | C88: 01/07/2017 | D88: 31/03/2018 | E88: 2,415.00 | F88: 1,800.00
A89: EAD 100 Extended Reach | B89: Note 23 | C89: 01/04/2018 | D89: 30/09/2018 | E89: 1,975.00 | F89: 1,698.00
A90: EAD 100 Extended Reach | B90: Note 23 | C90: 01/10/2018 | E90: 1,950.00 | F90: 1,698.00
A91: EAD 1000 Extended Reach | C91: 22/04/2009 | D91: 30/09/2012 | E91: 5,000.00 | F91: 13,000.00
A92: EAD 1000 Extended Reach | C92: 01/10/2012 | D92: 30/04/2013 | E92: 5,000.00 | F92: 9,819.00
A93: EAD 1000 Extended Reach | C93: 01/05/2013 | D93: 31/03/2014 | E93: 4,000.00 | F93: 8,400.00
A94: EAD 1000 Extended Reach | C94: 01/04/2014 | D94: 31/05/2014 | E94: 3,452.00 | F94: 7,998.00
A95: EAD 1000 Extended Reach | B95: Note 23 | C95: 01/06/2014 | D95: 31/03/2015 | E95: 4,000.00 | F95: 7,998.00
A96: EAD 1000 Extended Reach | B96: Note 23 | C96: 01/04/2015 | D96: 30/04/2016 | E96: 2,550.00 | F96: 6,498.00
A97: EAD 1000 Extended Reach | B97: Note 23 | C97: 01/05/2016 | D97: 30/09/2016 | E97: 2,550.00 | F97: 3,200.00
A98: EAD 1000 Extended Reach | B98: Note 23 | C98: 01/10/2016 | D98: 30/06/2017 | E98: 2,550.00 | F98: 3,198.00
A99: EAD 1000 Extended Reach | B99: Note 23 | C99: 01/07/2017 | D99: 30/09/2017 | E99: 2,540.00 | F99: 3,198.00
A100: EAD 1000 Extended Reach | B100: Note 23 | C100: 01/10/2017 | D100: 31/03/2018 | E100: 2,540.00 | F100: 2,850.00
A101: EAD 1000 Extended Reach | B101: Note 23 | C101: 01/04/2018 | D101: 30/09/2018 | E101: 1,975.00 | F101: 2,460.00
A102: EAD 1000 Extended Reach | B102: Note 23 | C102: 01/10/2018 | E102: 1,950.00 | F102: 1,944.00
A103: EAD 1000 Extended Reach (60 month minimum period) | C103: 15/12/2010 | D103: 30/04/2013 | E103: 5,000.00 | F103: 8,621.05
A104: EAD 1000 Extended Reach (60 month minimum period) | C104: 01/05/2013 | D104: 31/03/2014 | E104: 4,000.00 | F104: 7,998.00
A105: EAD 1000 Extended Reach (60 month minimum period) | C105: 01/04/2014 | D105: 31/05/2014 | E105: 3,452.00 | F105: 7,800.00
A106: EAD 1000 Extended Reach (60 month minimum period) | B106: Note 23 | C106: 01/06/2014 | D106: 31/03/2015 | E106: 4,000.00 | F106: 7,800.00
A107: EAD 1000 Extended Reach (60 month minimum period) | B107: Note 23 | C107: 01/04/2015 | D107: 30/04/2016 | E107: 2,550.00 | F107: 6,450.00
A108: EAD 1000 Extended Reach (60 month minimum period) | B108: Note 23 | C108: 01/05/2016 | D108: 30/06/2017 | E108: 2,550.00 | F108: 3,150.00
A109: EAD 1000 Extended Reach (60 month minimum period) | B109: Note 23 | C109: 01/07/2017 | D109: 30/09/2017 | E109: 2,540.00 | F109: 3,150.00
A110: EAD 1000 Extended Reach (60 month minimum period) | B110: Note 23 | C110: 01/10/2017 | D110: 31/03/2018 | E110: 2,540.00 | F110: 2,808.00
A111: EAD 1000 Extended Reach (60 month minimum period) | B111: Note 23 | C111: 01/04/2018 | D111: 30/09/2018 | E111: 1,975.00 | F111: 2,412.00
A112: EAD 1000 Extended Reach (60 month minimum period) | B112: Note 23 | C112: 01/10/2018 | E112: 1,950.00 | F112: 1,890.00
A113: EAD 1000 Extended Reach (84 month minimum period) | C113: 08/07/2013 | D113: 31/03/2014 | E113: 5,500.00 | F113: 7,521.00
A114: EAD 1000 Extended Reach (84 month minimum period) | C114: 01/04/2014 | D114: 31/05/2014 | E114: 4,952.00 | F114: 7,521.00
A115: EAD 1000 Extended Reach (84 month minimum period) | B115: Note 23 | C115: 01/06/2014 | D115: 30/06/2017 | E115: 5,500.00 | F115: 7,521.00
A116: EAD 1000 Extended Reach (84 month minimum period) | B116: Note 23 | C116: 01/07/2017 | D116: 30/09/2017 | E116: 5,490.00 | F116: 7,521.00
A117: EAD 1000 Extended Reach (84 month minimum period) | B117: Note 23 | C117: 01/10/2017 | D117: 31/03/2018 | E117: 5,490.00 | F117: 2,850.00
A118: EAD 1000 Extended Reach (84 month minimum period) | B118: Note 23 | C118: 01/04/2018 | D118: 30/09/2018 | E118: 5,490.00 | F118: 2,460.00
A119: EAD 1000 Extended Reach (84 month minimum period) | B119: Note 23 | C119: 01/10/2018 | E119: 5,465.00 | F119: 1944.00
A120: EAD 10000 | B120: Note 23 | C120: 21/09/2015 | D120: 30/06/2017 | E120: 6,000.00 | F120: 10,500.00
A121: EAD 10000 | B121: Note 23 | C121: 01/07/2017 | D121: 02/04/2018 | E121: 5,990.00 | F121: 10,500.00
A122: EAD 10000 | B122: Note 23 | C122: 03/04/2018 | D122: 30/09/2018 | E122: 5,590.00 | F122: 4,980.00
A123: EAD 10000 | B123: Note 23 | C123: 01/10/2018 | E123: 5,565.00 | F123: 4,980.00
A124: EAD 10000 (60 month minimum period) | B124: Note 23 | C124: 21/09/2015 | D124: 30/06/2017 | E124: 6,000.00 | F124: 8,400.00
A125: EAD 10000 (60 month minimum period) | B125: Note 23 | C125: 01/07/2017 | D125: 02/04/2018 | E125: 5,990.00 | F125: 8,400.00
A126: EAD 10000 (60 month minimum period) | B126: Note 23 | C126: 03/04/2018 | D126: 30/09/2018 | E126: 4,090.00 | F126: 4,380.00
A127: EAD 10000 (60 month minimum period) | B127: Note 23 | C127: 01/10/2018 | E127: 4,065.00 | F127: 4,380.00
A130: EAD Modify - Upgrade Charges (see note 21)
A132: Feature | B132: Note | C132: Operative date | D132: Until | E132: Connection Charge Per Circuit £ Exc VAT
A133: EAD Access 10 to 100 | C133: 23/09/2010 | E133: 45.00
A134: EAD Access 10 to 1000 * | C134: 23/09/2010 | D134: 30/03/2011 | E134: 2,255.00
A135: EAD Access 10 to 1000 or 1000 (60 month minimum period) * | C135: 31/03/2011 | D135: 31/03/2015 | E135: 2,255.00
A136: EAD Access 10 to 1000 or 1000 (60 month minimum period) * | C136: 01/04/2015 | E136: 1,260.00
A137: EAD Access 10 to 1000 Remote Upgrade | B137: Note 28 | C137: 17/05/2019 | E137: 100.00
A138: EAD Access 10 to 1000 (84 month minimum period) * | C138: 08/07/2013 | E138: 2,755.00
A139: EAD Access 100 to 1000 * | C139: 23/09/2010 | D139: 30/03/2011 | E139: 2,255.00
A140: EAD Access 100 to 1000 or 1000 (60 month minimum period) * | C140: 31/03/2011 | D140: 31/03/2015 | E140: 2,255.00
A141: EAD Access 100 to 1000 or 1000 (60 month minimum period) * | C141: 01/04/2015 | E141: 1,260.00
A142: EAD Access 100 to 1000 Remote Upgrade | B142: Note 28 | C142: 17/05/2019 | E142: 100.00
A143: EAD Access 100 to 1000 (84 month minimum period) * | C143: 08/07/2013 | E143: 2,755.00
A144: EAD Access 1000 to 1000 (60 month minimum period) | B144: Note 14 | C144: 31/03/2011 | E144: 45.00
A145: EAD Access 1000 (12 months or 60 months minimum period) to 1000 (84 month minimum period) | C145: 08/07/2013 | E145: 545.00
A146: EAD 10 Extended Reach to 100 Extended Reach | C146: 01/03/2013 | E146: 45.00
A147: EAD 10 Extended Reach to 1000 Extended Reach or 1000 Extended Reach (60 month minimum period) * | C147: 01/03/2013 | D147: 31/03/2015 | E147: 3,100.00
A148: EAD 10 Extended Reach to 1000 Extended Reach or 1000 Extended Reach (60 month minimum period) * | C148: 01/04/2015 | E148: 1,560.00
A149: EAD 10 Extended Reach to 1000 Extended Reach Remote Upgrade | B149: Note 28 | C149: 17/05/2019 | E149: 100.00
A150: EAD 10 Extended Reach to EAD 1000 Extended Reach (84 month minimum period) * | C150: 08/07/2013 | E150: 3,600.00
A151: EAD 100 Extended Reach to 1000 Extended Reach or 1000 Extended Reach (60 month minimum period) * | C151: 01/03/2013 | D151: 31/03/2015 | E151: 3,100.00
A152: EAD 100 Extended Reach to 1000 Extended Reach or 1000 Extended Reach (60 month minimum period) * | C152: 01/04/2015 | E152: 1,560.00
A153: EAD 100 Extended Reach to 1000 Extended Reach Remote Upgrade | B153: Note 28 | C153: 17/05/2019 | E153: 100.00
A154: EAD 100 Extended Reach to EAD 1000 Extended Reach (84 month minimum period) | C154: 08/07/2013 | E154: 3,600.00
A155: EAD 1000 Extended Reach (12 month or 60 month min period) to EAD 1000 Extended Reach (84 month minimum period) * | C155: 08/07/2013 | E155: 545.00
A156: EAD Local Access 10 LA to 100 LA | C156: 23/09/2010 | E156: 45.00
A157: EAD Local Access 10 LA to 1000 LA * | C157: 23/09/2010 | D157: 30/03/2011 | E157: 760.00
A158: EAD Local Access 10 LA to 1000 LA or 1000 LA (60 month minimum period) * | C158: 31/03/2011 | E158: 760.00
A159: EAD Local Access 10 LA to 1000 LA Remote Upgrade | B159: Note 28 | C159: 17/05/2019 | E159: 100.00
A160: EAD Local Access 10 LA to EAD 1000 LA (84 month minimum period) * | C160: 08/07/2013 | E160: 1,260.00
A161: EAD Local Access 100 LA to 1000 LA * | C161: 23/09/2010 | D161: 30/03/2011 | E161: 760.00
A162: EAD Local Access 100 LA to 1000 LA or 1000 LA (60 month minimum period) * | C162: 31/03/2011 | E162: 760.00
A163: EAD Local Access 100 LA to 1000 LA Remote Upgrade | B163: Note 28 | C163: 17/05/2019 | E163: 100.00
A164: EAD Local Access 100 LA to EAD 1000 LA (84 month minimum period) * | C164: 08/07/2013 | E164: 1,260.00
A165: EAD Local Access 1000 LA to 1000 LA (60 month minimum period) | B165: Note 15 | C165: 31/03/2011 | E165: 45.00
A166: EAD Local Access 1000 LA (12 months or 60 months min period) to EAD 1000 LA (84 month minimum period) | C166: 08/07/2013 | E166: 545.00
A168: Note: * Price includes a &pound;210 separate charge for engineer visit per circuit.
A171: EAD SyncE Modify - Upgrade Charges and Phase Synchronisatiion (see notes 21, 24, 25 & 27)
A173: Feature | B173: Note | C173: Operative date | D173: Until | E173: Connection Charge Per Circuit £ Exc VAT
A174: EAD 10/100 to EAD 100 SyncE | C174: 31/03/2014 | E174: 3,000
A175: EAD 10/100 to EAD 1000 SyncE (12 or 60 month minimum period) * | C175: 31/03/2014 | D175: 31/03/2015 | E175: 3,000
A176: EAD 10/100 to EAD 1000 SyncE (12 or 60 month minimum period) * | C176: 01/04/2015 | E176: 2,010
A177: EAD 10/100 to EAD 1000 SyncE (84 month minimum period) * | C177: 31/03/2014 | E177: 3,500
A178: EAD 10LA/100LA to 1000 LA SyncE (84 month minimum period) * | C178: 31/03/2014 | E178: 2,750
A179: EAD 10LA/100LA to 1000 LA SyncE (12 or 60 month minimum period) * | C179: 31/03/2014 | E179: 1,750
A180: EAD 10LA/100LA to 1000 LA SyncE (84 month minimum period) * | C180: 31/03/2014 | E180: 2,250
A181: EAD 10ER/100ER to EAD 100ER SyncE | C181: 31/03/2014 | E181: 3,100
A182: EAD 10ER/100ER to 1000 ER SyncE (12 or 60 month minimum period) * | C182: 31/03/2014 | D182: 31/03/2015 | E182: 3,100
A183: EAD 10ER/100ER to 1000 ER SyncE (12 or 60 month minimum period) * | C183: 01/04/2015 | E183: 2,310
A184: EAD 10ER/100ER to 1000 ER SyncE (84 month minimum period) * | C184: 31/03/2014 | E184: 3,600
A185: EAD 1000 (12 or 60 month minimum period) to EAD 1000 SyncE (12 or 60 month minimum period) | C185: 31/03/2014 | E185: 3,000
A186: EAD 1000 (84 month minimum period) to EAD 1000 SyncE (84 month minimum period) | C186: 31/03/2014 | E186: 3,000
A187: EAD 1000 (12 or 60 month minimum period) to EAD 1000 SyncE (84 month minimum period) | C187: 31/03/2014 | E187: 3,500
A188: EAD 1000 ER (12 or 60 month minimum period) to EAD 1000 ER SyncE (12 or 60 month minimum period) * | C188: 31/03/2014 | E188: 3,000
A189: EAD 1000 ER (84 month minimum period) to EAD 1000 ER SyncE (84 month minimum period) * | C189: 31/03/2014 | E189: 3,000
A190: EAD 1000 ER (12 or 60 month minimum period) to EAD 1000 ER SyncE (84 month minimum period) * | C190: 31/03/2014 | E190: 3,500
A191: EAD 1000LA (12 or 60 month minimum period) to 1000 LA SyncE (12 or 60 month minimum period) | C191: 31/03/2014 | E191: 3,000
A192: EAD 1000LA (84 month minimum period) to 1000 LA SyncE (84 month minimum period) | C192: 31/03/2014 | E192: 3,000
A193: EAD 1000LA (12 or 60 month minimum period) to 1000 LA SyncE (84 month minimum period) | C193: 31/03/2014 | E193: 3,500
A194: EAD 1000 SyncE to EAD 1000 SyncE (60 month minimum period) | B194: Note 14 | C194: 31/03/2014 | E194: 45
A195: EAD 1000 SyncE (12 months or 60 months minimum period) to EAD 1000 SyncE (84 month minimum period) | C195: 31/03/2014 | E195: 545
A196: EAD 1000 ER SyncE (12 month minimum period) to EAD 1000 ER SyncE (60 month minimum period) * | C196: 31/03/2014 | E196: 45
A197: EAD 1000 ER SyncE (12 month or 60 month minimum period) to EAD 1000 ER SyncE (84 month minimum period) * | C197: 31/03/2014 | E197: 545
A198: EAD 1000 LA SyncE to EAD 1000 LA SyncE (60 month minimum period) | B198: Note 15 | C198: 31/03/2014 | E198: 45
A199: EAD 1000 LA SyncE (12 months or 60 months min period) to EAD 1000 LA SyncE (84 month minimum period) | C199: 31/03/2014 | E199: 545
A200: EAD 10000 (all variants) to EAD Phase Synchronisation 10000 (all variants) | B200: Note 27 | C200: 03/10/2018 | E200: 500
A203: WES/WEES/BES to EAD Transfer Migration Charges
A205: Feature | C205: Operative date | D205: Until | E205: Connection charge per circuit £ Exc VAT
A206: From | B206: To
A207: WES/WEES 10 Unmanaged | B207: EAD 10 | C207: 16/05/2013 | D207: 31/03/2017 | E207: 1,950.00
A208: WES/WEES 10 Unmanaged | B208: EAD 10 | C208: 01/04/2017 | D208: 30/06/2017 | E208: 1,286.50
A209: WES/WEES 10 Unmanaged | B209: EAD 10 | C209: 01/07/2017 | D209: 31/03/2018 | E209: 1,284.00
A210: WES/WEES 10 Unmanaged | B210: EAD 10 | C210: 01/04/2018 | E210: 1,234.00
A211: WES/WEES 10 Managed | B211: EAD 10 | C211: 16/05/2013 | D211: 31/03/2017 | E211: 1,950.00
A212: WES/WEES 10 Managed | B212: EAD 10 | C212: 01/04/2017 | D212: 30/06/2017 | E212: 1,286.50
A213: WES/WEES 10 Managed | B213: EAD 10 | C213: 01/07/2017 | D213: 31/03/2018 | E213: 1,284.00
A214: WES/WEES 10 Managed | B214: EAD 10 | C214: 01/04/2018 | E214: 1,234.00
A215: WES/WEES 10 Unmanaged | B215: EAD 100 | C215: 10/04/2012 | D215: 31/03/2017 | E215: 1,463.00
A216: WES/WEES 10 Unmanaged | B216: EAD 100 | C216: 01/04/2017 | D216: 30/06/2017 | E216: 1,271.50
A217: WES/WEES 10 Unmanaged | B217: EAD 100 | C217: 01/07/2017 | D217: 31/03/2018 | E217: 1,269.00
A218: WES/WEES 10 Unmanaged | B218: EAD 100 | C218: 01/04/2018 | E218: 1,219.00
... 736 more rows
